{"text_format":"1","workbook":"xlsx","n_sheets":47,"sheets":["modReestrMO","Инструкция","Справочная информация","Лог обновления","Титульный","ХВС инвестиции","ХВС показатели(техническая)","ХВС показатели(питьевая)","ХВС показатели(подвозная)","ХВС показатели(другое)","ХВС показатели (2)(техническая)","ХВС показатели (2)(питьевая)","ХВС показатели (2)(подвозная)","ХВС показатели (2)(другое)","Ссылки на публикации","Комментарии","Проверка","TEHSHEET","CheckCopy","AllSheetsInThisWorkbook","et_union","modInfo","REESTR_ORG","modHyperlink","modChange","modTitleSheetHeaders","modServiceModule","modClassifierValidate","Паспорт","REESTR_FILTERED","REESTR_MO","modfrmReestr","modDblClick","modfrmDateChoose","modfrmSphereChoose","modSheetMain01","modSheetMain03","modSheetMain04","modSheetMain06","modSheetMain07","modSheetMain08","modUpdTemplMain","modRegionSelectSub","modfrmCheckUpdates","modCommonProv","modProvGeneralProc","modThisWorkbook"],"not_rendered":{"charts":0,"images":23,"macros":1,"external_links":1,"defined_names":235,"comments":0,"pivot_tables":0},"unopened":[],"bounds":{"document_bytes":16777216,"sheet_cells":100000,"rows_first":2000,"rows_last":500,"rows_between":2000,"halvings":0,"cell_chars":16384,"cell_head_chars":4096},"cells_cut":0,"cells_raw":0,"read":"whole","date_system":"1900"}

{"sheet":"modReestrMO","index":0,"n_rows":0,"n_cols":0,"rows_kept":0,"cut":false,"hidden":true,"merged":[]}

{"sheet":"Инструкция","index":1,"n_rows":75,"n_cols":6,"rows_kept":75,"cut":false,"hidden":false,"merged":[[81,1,81,4],[63,2,63,4],[64,2,64,4],[65,2,65,4],[66,2,66,4],[67,2,67,4],[75,2,75,4],[69,2,69,4],[68,2,68,4],[40,2,40,4],[41,2,41,4],[62,2,62,4],[44,2,44,4],[45,2,45,4],[42,2,42,4],[43,2,43,4],[46,2,46,4],[54,2,54,4],[55,2,55,4],[59,2,59,4],[60,2,60,4],[61,2,61,4],[56,2,56,4],[57,2,57,4],[58,2,58,4],[27,2,27,4],[33,3,33,4],[39,2,39,4],[28,2,28,4],[29,2,29,4],[30,2,30,4],[31,2,31,4],[38,2,38,4],[37,2,37,4],[36,2,36,4],[16,3,16,4],[25,2,25,4],[20,3,20,4],[22,3,22,4],[17,2,17,4],[18,2,18,3],[19,3,19,4],[7,2,7,4],[3,1,3,4],[5,2,5,4],[6,2,6,4],[32,3,32,4],[9,2,9,4],[10,2,10,4],[24,3,24,4],[12,3,12,4],[13,3,13,4],[11,2,11,4],[15,3,15,4],[26,2,26,4],[8,2,8,4],[21,3,21,4],[14,3,14,4]]}
[]
[null,null,"JKH.OPEN.INFO.TARIFF.HVS"]
[]
[null,"Инструкция"]
[]
[null,null,"1.  Технические требования",null,null,"u"]
[null,null," • на рабочем месте должен быть установлен MS Office 2007, 2010, 2013 с полной версией MS Excel"]
[null,null," • макросы во время работы должны быть включены (!)"]
[null,null," • для корректной работы шаблона требуется выбрать низкий уровень безопасности"]
[null,null,"(В меню MS Excel: Параметры Excel | Центр управления безопасностью | Параметры центра управления безопасностью | Параметры макросов | Включить все макросы | ОК)"]
[null,null,"2.  Законодательная основа шаблона",null,null,"u"]
[null,null,"Данный шаблон разработан в соответствии с:"]
[null,null," • ","ПОСТАНОВЛЕНИЕМ от 30 декабря 2009 г. N 1140 «ОБ УТВЕРЖДЕНИИ СТАНДАРТОВ РАСКРЫТИЯ ИНФОРМАЦИИ ОРГАНИЗАЦИЯМИ КОММУНАЛЬНОГО КОМПЛЕКСА И СУБЪЕКТАМИ ЕСТЕСТВЕННЫХ МОНОПОЛИЙ, ОСУЩЕСТВЛЯЮЩИМИ ДЕЯТЕЛЬНОСТЬ В СФЕРЕ ОКАЗАНИЯ УСЛУГ ПО ПЕРЕДАЧЕ ТЕПЛОВОЙ ЭНЕРГИИ»"]
[null,null,null,"Полный текст Постановления №1140 на сайте ФСТ России"]
[null,null,null,{"$f":"\"Подробнее о сфере \"& TSphere_full","v":"Подробнее о сфере холодного водоснабжения"}]
[null,null," • ","ПОСТАНОВЛЕНИЕМ от 13 апреля 2010 г. N 237 «ОБ УТВЕРЖДЕНИИ ПРАВИЛ ОСУЩЕСТВЛЕНИЯ КОНТРОЛЯ ЗА СОБЛЮДЕНИЕМ ОРГАНИЗАЦИЯМИ КОММУНАЛЬНОГО КОМПЛЕКСА СТАНДАРТОВ РАСКРЫТИЯ ИНФОРМАЦИИ»"]
[null,null,null,"Полный текст Постановления №237"]
[null,null,"3.  Условные обозначения",null,null,"t"]
[null,null,"Типы ячеек:"]
[null,null,"●"," - обязательные для заполнения;"]
[null,null,"●"," - предназначенные для заполнения;"]
[null,null,"●"," - с формулами и константами или заполняемые автоматически (например, при выборе организации)."]
[null,null,"●"," - ячейки с выбором значений до двойному клику (щелчку) (например, при выборе даты или данных из "]
[null,null,null,"справочников)."]
[null,null,null,"Пояснение к заполнению на листе."]
[null,null,"4.  Работа с реестрами",null,null,"t"]
[null,null,"Если в предложенном Вам списке необходимая организация (МР/МО) отсутствует, обновите реестр с помощью кнопки «Обновить реестр организаций» («Обновить реестр МО»)."]
[null,null,"В результате синхронизации с базой данных список организаций (МР/МО) будет заменён актуальным (механизм синхронизации требует подключения к сети Интернет и основан на использовании протокола HTTPS (TCP порт 443)). "]
[null,null,"Если после обновления Вам не удалось найти необходимую организацию в списке, обратитесь к ответственному за поддержание реестра Вашего региона. Информация о региональных органах регулирования доступна по ссылке:"]
[null,null,"http://www.fstrf.ru/regions/region/showlist"]
[null,null,"5.  Обновление шаблона",null,null,"t"]
[null,null,"Если Ваш компьютер имеет подключение к Интернет, можно автоматически проверять наличие доступных обновлений. Выберите способ оповещения о наличии обновлений для шаблона:"]
[null,null,"y","проверять доступные обновления (рекомендуется)"]
[null,null,null,"никогда не проверять наличие обновлений (не рекомендуется)"]
[null,null,null,null,"Чтобы проверить наличие обновлений, нажмите кнопку «Обновить текущую версию шаблона»."]
[null,null,null,null,"Чтобы отобразить/скрыть лог обновления и статусные сообщения, нажмите кнопку \"Отобразить/скрыть лист Лог обновления\"."]
[null,null,"4.  Работа с листом «Проверка»",null,null,"t"]
[null,null,"• При сохранении шаблона осуществляется проверка корректности данных, в том числе на наличие значений в ячейках, обязательных для заполнения. "]
[null,null,"• Если какая-то ячейка не удовлетворяет условию проверки, на лист «Проверка» добавляется гиперссылка на данную ячейку и указывается причина ошибки."]
[null,null,"• В колонке «Статус» для каждого сообщения возможны 2 значения: ошибка и предупреждение. "]
[null,null,"• При наличии сообщений со статусом «Ошибка» шаблон будет отклонён системой и не будет загружен в хранилище данных, сообщения со статусом «Предупреждение» носят информационный характер, и такой шаблон будет принят системой."]
[]
[null,null,"• Если Вы работаете в табличном процессоре Microsoft Excel 2007 и выше, Вы можете использовать для работы формат XLSM (Книга Excel с поддержкой макросов)."]
[null,null,"• При сохранении не следует выбирать формат XLSX (Книга Excel), так как в указанном формате макросы, задействованные при работе с шаблоном, БЕЗВОЗВРАТНО УДАЛЯЮТСЯ."]
[null,null,"• После того, как будут устранены все замечания, при сохранении шаблона появится сообщение «Шаблон готов к сохранению без замечаний»."]
[]
[null,null,"5.  Организационно-технические консультации",null,null,"t"]
[null,null,null,"ФИО:",""]
[null,null,null,"Телефон:",""]
[null,null,null,"E-mail:"]
[null,null,null,"Web-сайт:"]
[null,null,null,"Комментарий"]
[null,null,null,"Дистрибутивы:"]
[]
[null,null,"6.  Методология заполнения",null,null,"t"]
[null,null,"   Перед началом работы с шаблоном Вам необходимо нажать кнопку \"Перейкти к заполнению шаблона\", после чего в шаблоне отобразятся листы для заполнения."]
[null,null,"   В разделе «Справочная информация» размещены фрагменты Постановления №1140 «СТАНДАРТЫ РАСКРЫТИЯ ИНФОРМАЦИИ ОРГАНИЗАЦИЯМИ КОММУНАЛЬНОГО КОМПЛЕКСА И СУБЪЕКТАМИ ЕСТЕСТВЕННЫХ МОНОПОЛИЙ, ОСУЩЕСТВЛЯЮЩИМИ ДЕЯТЕЛЬНОСТЬ В СФЕРЕ ОКАЗАНИЯ УСЛУГ ПО ПЕРЕДАЧЕ ТЕПЛОВОЙ ЭНЕРГИИ», относящиеся к данному шаблону. В случае вопросов по составу раскрываемой информации, срокам раскрытия и формату раскрытия Вы можете уточнить их в соответствующих документах."]
[null,null,"   На листе «Титульный» нужно заполнить все ячейки голубого цвета."]
[null,null,"   Для создания печатной формы необходимо выполнить щелчок левой кнопки мыши по значку принтера (левый верхний угол под заголовком) на листе «Титульный»."]
[null,null,"   В зависимости от выбранного значения в поле «Публикация» на листе «Титульный» изменяется содержание и количество листов."]
[null,null,{"$f":"IF(TSphere = \"ТБО\", \"   Перечислите все муниципальные районы, в которых организация осуществляет услуги по утилизации (захоронению) твердых бытовых отходов.\", \"   В случае, если тариф не дифференцируется по системам \"&IF(TSphere = \"ТС\",\"теплоснабжения\",\"коммунальной инфраструктуры\")&\", перечислите все муниципальные районы, в которых организация осуществляет услуги \" &TSphere_full&\".\")","v":"   В случае, если тариф не дифференцируется по системам коммунальной инфраструктуры, перечислите все муниципальные районы, в которых организация осуществляет услуги холодного водоснабжения."}]
[null,null,{"$f":"IF(TSphere = \"ТБО\", \"   Перечислите все муниципальные образования, в которых организация осуществляет услуги по утилизации (захоронению) твердых бытовых отходов.\", \"   В случае, если тариф не дифференцируется по системам \"&IF(TSphere = \"ТС\",\"теплоснабжения\",\"коммунальной инфраструктуры\")&\", перечислите все муниципальные образования, в которых организация осуществляет услуги \" &TSphere_full&\".\")","v":"   В случае, если тариф не дифференцируется по системам коммунальной инфраструктуры, перечислите все муниципальные образования, в которых организация осуществляет услуги холодного водоснабжения."}]
[null,null,"   Задайте период регулирования на листе «Титульный» , выбрав начало и окончание очередного периода с помощью календаря /выполните двойной щелчок по соответствующей синей ячейке/."]
[null,null,"   Для выбора того или иного источника публикации выполните двойной щелчок по синей ячейке напротив соответствующего источника. Если Вы снимаете галочку с пункта, то будут скрыты и очищены соответствующие строки на листе «Ссылки на публикации»."]
[null,null,"  На листе «Ссылки на публикации» «Адрес сайта в сети интернет» вводите, не нарушая цвет ячейки /если копируете гиперссылку из браузера, то выполните двойной щелчок левой кнопки мыши по ячейке и только после этого можете вставить скопированный элемент/."]
[null,null,"   При вводе даты на расчетных листах необходимо выполнить двойной щелчок левой кнопки мыши по соответствующей ячейке."]
[null,null,"   Если какой-либо из показателей на расчетных листах для Вашей организации отсутствует, введите в поле, обязательное для заполнение, «0» (для числовых показателей) и «-» (для текстовых). "]
[null,null,"   Внимательно следите за информационными сообщениями на расчетных листах. "]
[null,null,"   Все необходимые комментарии по всем формам Вы можете отразить на листе «Комментарии». "]
[null,null,"7.  Консультации по методологии заполнения",null,null,"t"]
[null,null,null,"ФИО:",""]
[null,null,null,"Телефон:"]
[null,null,null,"E-mail:"]
[null,null,null,"Web-сайт:"]
[null,null,null,"Комментарий"]

{"sheet":"Справочная информация","index":2,"n_rows":90,"n_cols":3,"rows_kept":90,"cut":false,"hidden":true,"merged":[[2,1,2,2]]}
[]
[]
[null,"Инструкция"]
[]
[]
[null,null,"IV. Стандарты раскрытия информации в сфере холодного водоснабжения"]
[]
[null,null,"33. В сфере холодного водоснабжения раскрытию подлежит информация: "]
[null,null,"а) о ценах (тарифах) на регулируемые товары и услуги и надбавках к этим ценам (тарифам); "]
[null,null,"б) об основных показателях финансово-хозяйственной деятельности регулируемых организаций, включая структуру основных производственных затрат (в части регулируемой деятельности); "]
[null,null,"в) об основных потребительских характеристиках регулируемых товаров и услуг регулируемых организаций и их соответствии государственным и иным утвержденным стандартам качества; "]
[null,null,"г) об инвестиционных программах и отчетах об их реализации; "]
[null,null,"д) о наличии (отсутствии) технической возможности доступа к регулируемым товарам и услугам регулируемых организаций, а также о регистрации и ходе реализации заявок на подключение к системе холодного водоснабжения; "]
[null,null,"е) об условиях, на которых осуществляется поставка регулируемых товаров и (или) оказание регулируемых услуг; "]
[null,null,"ж) о порядке выполнения технологических, технических и других мероприятий, связанных с подключением к системе холодного водоснабжения. "]
[null,null,"34. Информация о ценах (тарифах) на регулируемые товары и услуги и надбавках к этим ценам (тарифам) содержит сведения: "]
[null,null,"а) об утвержденных тарифах на холодную воду; "]
[null,null,"б) об утвержденных надбавках к ценам (тарифам) на холодную воду для потребителей; "]
[null,null,"в) об утвержденных надбавках к тарифам регулируемых организаций на холодную воду; "]
[null,null,"г) об утвержденных тарифах на подключение создаваемых (реконструируемых) объектов недвижимости к системе холодного водоснабжения; "]
[null,null,"д) об утвержденных тарифах регулируемых организаций на подключение к системе холодного водоснабжения. "]
[null,null,"35. В отношении каждой из групп сведений, указанных в пункте 34 настоящего документа, указываются наименование регулирующего органа, принявшего решение об утверждении цен (тарифов) и надбавок к ним, реквизиты (дата и номер) такого решения, величина установленного тарифа или надбавки, срок действия тарифа или надбавки, а также источник официального опубликования решения. "]
[null,null,"36. Информация об основных показателях финансово-хозяйственной деятельности регулируемых организаций, включая структуру основных производственных затрат (в части регулируемой деятельности), содержит сведения: "]
[null,null,"а) о виде регулируемой деятельности (поставка холодной воды, оказание услуг в сфере холодного водоснабжения - подъем воды, очистка воды, транспортировка воды); "]
[null,null,"б) о выручке от регулируемой деятельности (тыс. рублей); "]
[null,null,"в) о себестоимости производимых товаров (оказываемых услуг) по регулируемому виду деятельности (тыс. рублей), включающей: "]
[null,null,"расходы на оплату покупной холодной воды, приобретаемой от других организаций для последующей передачи потребителям; "]
[null,null,"расходы на покупаемую электрическую энергию (мощность), потребляемую оборудованием, используемым в технологическом процессе, с указанием средневзвешенной стоимости 1 кВт х ч и объеме приобретения электрической энергии; "]
[null,null,"расходы на химреагенты, используемые в технологическом процессе; "]
[null,null,"расходы на оплату труда и отчисления на социальные нужды основного производственного персонала; "]
[null,null,"расходы на амортизацию основных производственных средств и аренду имущества, используемого в технологическом процессе; "]
[null,null,"общепроизводственные (цеховые) расходы, в том числе расходы на оплату труда и отчисления на социальные нужды; "]
[null,null,"общехозяйственные (управленческие) расходы, в том числе расходы на оплату труда и отчисления на социальные нужды; "]
[null,null,"расходы на ремонт (капитальный и текущий) основных производственных средств; "]
[null,null,"расходы на услуги производственного характера, выполняемые по договорам с организациями на проведение регламентных работ в рамках технологического процесса; "]
[null,null,"г) о валовой прибыли от продажи товаров и услуг по регулируемому виду деятельности (тыс. рублей); "]
[null,null,"д) о чистой прибыли по регулируемому виду деятельности с указанием размера ее расходования на финансирование мероприятий, предусмотренных инвестиционной программой регулируемой организации по развитию системы холодного водоснабжения (тыс. рублей); "]
[null,null,"е) об изменении стоимости основных фондов, в том числе за счет ввода (вывода) их из эксплуатации (тыс. рублей); "]
[null,null,"ж) о годовой бухгалтерской отчетности, включая бухгалтерский баланс и приложения к нему (раскрывается регулируемыми организациями, выручка от регулируемой деятельности которых превышает 80 процентов совокупной выручки за отчетный год); "]
[null,null,"з) об объеме поднятой воды (тыс. куб. м); "]
[null,null,"и) об объеме покупной воды (тыс. куб. м); "]
[null,null,"к) об объеме воды, пропущенной через очистные сооружения (тыс. куб. м); "]
[null,null,"л) об объеме отпущенной потребителям воды, включая объемы, отпущенные по приборам учета и по нормативам потребления (расчетным методом) (тыс. куб. м); "]
[null,null,"м) о потерях воды в сетях (процентов); "]
[null,null,"н) о протяженности водопроводных сетей (в однотрубном исчислении) (км); "]
[null,null,"о) о количестве скважин (штук); "]
[null,null,"п) о количестве подкачивающих насосных станций (штук); "]
[null,null,"р) о среднесписочной численности основного производственного персонала (человек); "]
[null,null,"с) об удельном расходе электроэнергии на подачу воды в сеть (тыс. кВт х ч или тыс. куб. м); "]
[null,null,"т) о расходе воды на собственные, в том числе хозяйственно-бытовые, нужды (процентов); "]
[null,null,"у) о показателе использования производственных объектов (по объему перекачки) по отношению к пиковому дню отчетного года (процентов). "]
[null,null,"37. Информация об основных потребительских характеристиках регулируемых товаров и услуг регулируемых организаций и их соответствии государственным и иным утвержденным стандартам качества содержит сведения: "]
[null,null,"а) о количестве аварий на системах холодного водоснабжения (единиц на км); "]
[null,null,"б) о количестве случаев подачи холодной воды по графику (менее 24 часов в сутки) и доле потребителей, затронутых ограничениями подачи холодной воды; "]
[null,null,"в) об общем количестве проведенных проб по следующим показателям: "]
[null,null,"мутность; "]
[null,null,"цветность; "]
[null,null,"хлор остаточный общий, в том числе хлор остаточный связанный и хлор остаточный свободный; "]
[null,null,"общие колиформные бактерии; "]
[null,null,"термотолерантные колиформные бактерии; "]
[null,null,"г) о количестве проведенных проб, выявивших несоответствие холодной воды санитарным нормам (предельно допустимой концентрации), по следующим показателям: "]
[null,null,"мутность; "]
[null,null,"цветность; "]
[null,null,"хлор остаточный связанный и хлор остаточный свободный; "]
[null,null,"общие колиформные бактерии; "]
[null,null,"термотолерантные колиформные бактерии. "]
[null,null,"38. Информация об инвестиционных программах и отчетах об их реализации содержит наименование соответствующей программы, а также сведения: "]
[null,null,"а) о цели инвестиционной программы; "]
[null,null,"б) о сроках начала и окончания реализации инвестиционной программы; "]
[null,null,"в) о потребностях в финансовых средствах, необходимых для реализации инвестиционной программы, в том числе с разбивкой по годам, мероприятиям и источникам финансирования инвестиционной программы (тыс. рублей); "]
[null,null,"г) о показателях эффективности реализации инвестиционной программы, а также об изменении технико-экономических показателей регулируемой организации (с разбивкой по мероприятиям); "]
[null,null,"д) об использовании инвестиционных средств за отчетный год с разбивкой по кварталам, мероприятиям и источникам финансирования инвестиционной программы (тыс. рублей). "]
[null,null,"39. В официальных печатных изданиях сведения, указанные в подпунктах \"в\" - \"д\" пункта 38 настоящего документа, публикуются в отношении мероприятий инвестиционной программы, доля расходов на реализацию каждого из которых превышает 5 процентов суммы финансирования инвестиционной программы за отчетный год. "]
[null,null,"40. Информация о наличии (отсутствии) технической возможности доступа к регулируемым товарам и услугам регулируемых организаций, а также о регистрации и ходе реализации заявок на подключение к системе холодного водоснабжения содержит сведения: "]
[null,null,"а) о количестве поданных и зарегистрированных заявок на подключение к системе холодного водоснабжения; "]
[null,null,"б) о количестве исполненных заявок на подключение к системе холодного водоснабжения; "]
[null,null,"в) о количестве заявок на подключение к системе холодного водоснабжения, по которым принято решение об отказе в подключении; "]
[null,null,"г) о резерве мощности системы коммунальной инфраструктуры. При наличии у регулируемой организации раздельных систем холодного водоснабжения информация о резерве мощности таких систем публикуется в отношении каждой системы холодного водоснабжения. "]
[null,null,"41. Информация об условиях, на которых осуществляется поставка регулируемых товаров и (или) оказание регулируемых услуг, содержит сведения об условиях публичных договоров поставок регулируемых товаров, оказания регулируемых услуг, в том числе договоров на подключение к системе холодного водоснабжения. "]
[null,null,"42. Информация о порядке выполнения технологических, технических и других мероприятий, связанных с подключением к системе холодного водоснабжения, содержит: "]
[null,null,"а) форму заявки на подключение к системе холодного водоснабжения; "]
[null,null,"б) перечень и формы документов, представляемых одновременно с заявкой на подключение к системе холодного водоснабжения; "]
[null,null,"в) описание (со ссылкой на нормативные правовые акты) порядка действий заявителя и регулируемой организации при подаче, приеме, обработке заявки на подключение к системе холодного водоснабжения, принятии решения и уведомлении о принятом решении; "]
[null,null,"г) телефоны и адреса службы, ответственной за прием и обработку заявок на подключение к системе холодного водоснабжения. "]
[null,null,"43. Информация, указанная в пунктах 34, 41 и 42 настоящего документа, раскрывается регулируемой организацией не позднее 30 дней со дня принятия соответствующего решения об установлении тарифа (надбавки) на очередной период регулирования. "]
[null,null,"Одновременно с указанной в пункте 34 настоящего документа информацией на сайте в сети Интернет публикуются сведения о финансово-хозяйственной деятельности регулируемой организации, указанные в подпунктах \"а\" - \"д\", \"з\" - \"т\" пункта 36 и подпунктах \"а\" - \"г\" пункта 38 настоящего документа, учтенные органом исполнительной власти субъекта Российской Федерации (органом местного самоуправления) при установлении тарифов и надбавок к тарифам на очередной период регулирования. "]
[null,null,"Информация, указанная в пунктах 36-38 настоящего документа, раскрывается регулируемой организацией не позднее 30 дней со дня сдачи годового бухгалтерского баланса в налоговые органы и должна соответствовать годовой бухгалтерской отчетности за отчетный год. "]
[null,null,"Одновременно с указанной в пункте 36 настоящего документа информацией о расходах на ремонт (капитальный и текущий) основных производственных средств и расходах на услуги производственного характера, выполняемые по договорам с организациями на проведение регламентных работ в рамках технологического процесса, на сайте в сети Интернет публикуется информация об объемах товаров и услуг, их стоимости и способах приобретения у тех организаций, сумма оплаты услуг которых превышает 20 процентов суммы расходов по каждой из указанных статьей расходов. "]
[null,null,"При этом указывается информация о поставке товаров и услуг, стоимость которых превышает 20 процентов суммы поставки товаров и услуг каждой из этих организаций. "]
[null,null,"Информация, указанная в пункте 40 настоящего документа, раскрывается регулируемой организацией ежеквартально."]

{"sheet":"Лог обновления","index":3,"n_rows":36,"n_cols":4,"rows_kept":36,"cut":false,"hidden":true,"merged":[]}
[]
["3/17/2012  12:12:41 AM","Дата/Время","Сообщение","Статус"]
[null,"11/14/2016  3:20:19 PM","Проверка доступных обновлений...","Информация"]
[null,"11/14/2016  3:20:21 PM","Версия шаблона 5.0.2 актуальна, обновление не требуется","Информация"]
[null,"11/14/2016  3:31:52 PM","Проверка доступных обновлений...","Информация"]
[null,"11/14/2016  3:31:53 PM","Версия шаблона 5.0.2 актуальна, обновление не требуется","Информация"]
[null,"11/14/2016  4:02:27 PM","Проверка доступных обновлений...","Информация"]
[null,"11/14/2016  4:02:28 PM","Версия шаблона 5.0.2 актуальна, обновление не требуется","Информация"]
[null,"11/16/2016  12:39:29 AM","Проверка доступных обновлений...","Информация"]
[null,"11/16/2016  12:39:33 AM","Версия шаблона 5.0.2 актуальна, обновление не требуется","Информация"]
[null,"11/16/2016  12:43:38 AM","Проверка доступных обновлений...","Информация"]
[null,"11/16/2016  12:43:40 AM","Версия шаблона 5.0.2 актуальна, обновление не требуется","Информация"]
[null,"11/16/2016  12:45:37 AM","Проверка доступных обновлений...","Информация"]
[null,"11/16/2016  12:45:38 AM","Версия шаблона 5.0.2 актуальна, обновление не требуется","Информация"]
[null,"11/16/2016  12:49:21 AM","Проверка доступных обновлений...","Информация"]
[null,"11/16/2016  12:49:23 AM","Версия шаблона 5.0.2 актуальна, обновление не требуется","Информация"]
[null,"11/18/2016  11:39:17 AM","Проверка доступных обновлений...","Информация"]
[null,"11/18/2016  11:39:18 AM","Версия шаблона 5.0.2 актуальна, обновление не требуется","Информация"]
[null,"11/19/2016  7:10:24 PM","Проверка доступных обновлений...","Информация"]
[null,"11/19/2016  7:10:25 PM","Версия шаблона 5.0.2 актуальна, обновление не требуется","Информация"]
[null,"11/20/2016  4:09:49 PM","Проверка доступных обновлений...","Информация"]
[null,"11/20/2016  4:09:50 PM","Версия шаблона 5.0.2 актуальна, обновление не требуется","Информация"]
[null,"12/9/2016  12:46:22 PM","Проверка доступных обновлений...","Информация"]
[null,"12/9/2016  12:46:23 PM","Версия шаблона 5.0.2 актуальна, обновление не требуется","Информация"]
[null,"12/16/2016  10:19:08 AM","Проверка доступных обновлений...","Информация"]
[null,"12/16/2016  10:19:09 AM","Версия шаблона 5.0.2 актуальна, обновление не требуется","Информация"]
[null,"12/16/2016  10:20:53 AM","Проверка доступных обновлений...","Информация"]
[null,"12/16/2016  10:20:54 AM","Версия шаблона 5.0.2 актуальна, обновление не требуется","Информация"]
[null,"12/28/2017  11:45:50 AM","Проверка доступных обновлений...","Информация"]
[null,"12/28/2017  11:45:51 AM","Версия шаблона 5.0.2 актуальна, обновление не требуется","Информация"]
[null,"12/28/2017  2:51:07 PM","Проверка доступных обновлений...","Информация"]
[null,"12/28/2017  2:51:08 PM","Версия шаблона 5.0.2 актуальна, обновление не требуется","Информация"]
[null,"12/28/2017  4:22:04 PM","Проверка доступных обновлений...","Информация"]
[null,"12/28/2017  4:22:05 PM","Версия шаблона 5.0.2 актуальна, обновление не требуется","Информация"]
[null,"12/28/2017  4:49:18 PM","Проверка доступных обновлений...","Информация"]
[null,"12/28/2017  4:49:19 PM","Версия шаблона 5.0.2 актуальна, обновление не требуется","Информация"]

{"sheet":"Титульный","index":4,"n_rows":66,"n_cols":7,"rows_kept":66,"cut":false,"hidden":false,"merged":[[63,2,65,2],[63,4,64,4],[61,5,61,6],[41,5,41,6],[44,5,44,6],[45,5,45,6],[59,5,59,6],[47,5,47,6],[58,5,58,6],[56,5,56,6],[55,5,55,6],[49,5,49,6],[57,5,57,6],[53,5,53,6],[51,5,51,6],[48,5,48,6],[29,5,29,6],[30,5,30,6],[39,5,39,6],[40,5,40,6],[24,5,24,6],[26,5,26,6],[43,5,43,6],[35,5,35,6],[31,5,31,6],[32,5,32,6],[33,5,33,6],[52,5,52,6],[1,3,1,7],[4,5,4,6],[6,5,6,6],[10,5,10,6],[11,5,11,6],[9,5,9,6],[8,5,8,6],[13,5,13,6],[14,5,14,6],[37,5,37,6],[19,5,19,6],[23,5,23,6],[16,5,16,6],[21,5,21,6],[28,5,28,6]]}
[null,null,null,null,null,null,"01.01.2016"]
[{"$f":"IF(fil=\"\",\"Не определено\",fil)","v":"филиал ПАО \"ОГК-2\" - Рязанская ГРЭС"},{"$f":"IF(kpp=\"\",\"Не определено\",kpp)","v":"621143001"},null,{"$f":"\"Показатели, подлежащие раскрытию в сфере \"&TSphere_full&\" (План)\"","v":"Показатели, подлежащие раскрытию в сфере холодного водоснабжения (План)"}]
[]
[null,null,null,null,"Создать печатную форму"]
[null,null,null,null,"Субъект РФ","Рязанская область"]
[]
[null,null,null,null,"Публикация","На сайте регулирующего органа"]
[]
[null,null,null,null,null,"Источники публикации"]
[null,null,null,null,{"$f":"\"Сайт\"&IF(strPublication=\"На официальном сайте организации\",\" организации \",\" \")&\"в сети Интернет\"","v":"Сайт в сети Интернет"},"a"]
[null,null,null,null,"Печатное издание","a"]
[null,null,null,null,"Электронная версия печатного издания"]
[]
[]
[null,null,null,null,"Период регулирования","с 20.11.2017 по 20.01.2018"]
[]
["L0","Признак филиала",null,null,"Является ли данное юридическое лицо подразделением (филиалом) другой организации","да"]
[]
[66]
[null,null,null,null,"Наименование организации","ПУБЛИЧНОЕ АКЦИОНЕРНОЕ ОБЩЕСТВО \"ВТОРАЯ ГЕНЕРИРУЮЩАЯ КОМПАНИЯ ОПТОВОГО РЫНКА ЭЛЕКТРОЭНЕРГИИ\""]
[]
[null,null,null,null,"Наименование ПОДРАЗДЕЛЕНИЯ","филиал ПАО \"ОГК-2\" - Рязанская ГРЭС"]
[]
[null,null,null,null,"ИНН","2607018122"]
[null,null,null,null,"КПП","621143001"]
[]
[null,null,null,null,"Вид деятельности","Водоснабжение (подъем, очистка, транспортировка)"]
[]
[null,null,null,null,null,"Вид товара"]
[null,null,null,null,"Техническая вода","нет"]
[null,null,null,null,"Питьевая вода","да"]
[null,null,null,null,"Подвозная вода","нет"]
[null,null,null,null,"Другое","нет"]
[null,null,null,null,"Комментарии к виду товара \"Другое\""]
[]
[null,null,null,null,"Режим налогообложения","общий"]
[]
[null,null,null,null,"Организация выполняет инвестиционную программу","нет"]
[]
[null,null,null,null,null,{"$f":"\"Система \"&IF(TSphere=\"ТС\",\"теплоснабжения\",\"коммунальной инфраструктуры\")","v":"Система коммунальной инфраструктуры"}]
[null,null,null,null,"Условный порядковый номер","1"]
[null,null,null,null,"Описание","филиал ПАО \"ОГК-2\" - Рязанская ГРЭС"]
[]
[null,null,null,null,null,"Адрес организации"]
[null,null,null,null,"Юридический адрес:","356126, КРАЙ СТАВРОПОЛЬСКИЙ, "]
[null,null,null,null,"Почтовый адрес:","Промышленная ул. Д. 1 г. Новомичуринск, Рязанской обл. 391160"]
[]
[null,null,null,null,null,"Руководитель"]
[null,null,null,null,"Фамилия, имя, отчество:","Тимофеев Павел Вячеславович"]
[null,null,null,null,"(код) номер телефона:","(49141)4-18-21"]
[]
[null,null,null,null,null,"Главный бухгалтер"]
[null,null,null,null,"Фамилия, имя, отчество:","Левушкина Елена Валентиновна"]
[null,null,null,null,"(код) номер телефона:","(49141)4-22-26"]
[]
[null,null,null,null,null,"Должностное лицо, ответственное за составление формы"]
[null,null,null,null,"Фамилия, имя, отчество:","Яшунина Татьяна Николаевна"]
[null,null,null,null,"Должность:","ведущий экономист по планированию ПЭО"]
[null,null,null,null,"(код) номер телефона:","8(49141)45-1-08"]
[null,null,null,null,"e-mail:","Yashunina.Tatyana@rgr.ogk2.ru"]
[]
[null,null,null,null,{"$f":"\"Муниципальный район, на территории которого \" & IF(TSphere = \"ТБО\", \"оказывает услуги данная организация\", \"размещена система \"&IF(TSphere = \"ТС\",\"теплоснабжения\",\"коммунальной инфраструктуры\"))","v":"Муниципальный район, на территории которого размещена система коммунальной инфраструктуры"},{"$f":"\"Муниципальное образование, на территории которого \" & IF(TSphere = \"ТБО\", \"оказывает услуги данная организация\", \"размещена система \"&IF(TSphere = \"ТС\",\"теплоснабжения\",\"коммунальной инфраструктуры\"))","v":"Муниципальное образование, на территории которого размещена система коммунальной инфраструктуры"}]
[null,null,null,null,"Наименование МР","Наименование МО","ОКТМО"]
[null,null,null,null,"Пронский муниципальный район","Новомичуринское","61625114"]
[null,null,null,null,null,"Добавить МО"]
[null,null,null,null,"Добавить МР"]

{"sheet":"ХВС инвестиции","index":5,"n_rows":56,"n_cols":9,"rows_kept":56,"cut":false,"hidden":true,"merged":[[46,4,47,4],[46,5,47,5],[36,4,37,4],[36,5,37,5],[50,4,51,4],[50,5,51,5],[48,4,49,4],[48,5,49,5],[44,5,45,5],[40,4,41,4],[38,4,39,4],[38,5,39,5],[40,5,41,5],[42,4,43,4],[42,5,43,5],[44,4,45,4],[1,5,1,6],[23,5,23,6],[24,5,24,6],[3,4,4,4],[3,5,4,5],[15,3,15,10],[19,5,19,6],[16,3,16,10],[19,8,19,9],[34,4,35,4],[34,5,35,5],[32,4,33,4],[32,5,33,5],[29,5,29,6],[25,5,25,6],[31,5,31,6],[20,5,20,6],[26,5,26,6],[21,5,21,6],[22,5,22,6],[28,5,28,6]]}
[]
[]
[]
[null,null,null,null,null,null,"План на отчетный период"]
[null,null,null,null,null,null,"Факт на начало реализации программы**"]
[]
[]
[]
[]
[]
[]
[]
[]
[]
[]
[null,null,null,"Информация об инвестиционных программах и отчетах об их реализации *"]
[]
[]
[]
[null,"Мероприятие 1",null,null,"№ п/п","Наименование показателя",null,"Значение","Добавить мероприятие"]
[null,4,null,null,1,{"$f":"E21+1","v":2},null,"3"]
[null,null,null,null,1,"Наименование инвестиционной программы (мероприятия)"]
[null,"х",null,null,2,"Цель инвестиционной программы","Цель инвестиционной программы"]
[null,"",null,null,3,"Срок начала реализации инвестиционной программы",null,""]
[null,"",null,null,4,"Срок окончания реализации инвестиционной программы",null,""]
[null,{"$f":"SUM(B27:B28)","v":0},null,null,"5","Потребность в финансовых средствах, необходимых для реализации инвестиционной программы за весь период реализации (тыс.руб.), в том числе по источникам финансирования:"]
[null,null,null,null,"5.1"]
[null,null,null,null,null,"Добавить источники"]
[null,{"$f":"SUM(B30:B31)","v":0},null,null,"6","Потребность в финансовых средствах, необходимых для реализации инвестиционной программы за отчетный период (тыс.руб.), в том числе по источникам финансирования:"]
[null,null,null,null,"6.1"]
[null,null,null,null,null,"Добавить источники"]
[null,"х",null,null,"7","Эффективность реализации инвестиционной программы (включая изменения технико-экономических показателей организации):",null,"х"]
[null,null,null,null,"7.1","Срок окупаемости, лет","План на отчетный период"]
[null,null,null,null,null,null,"Факт на начало реализации программы**"]
[null,null,null,null,"7.2","Перебои в снабжении потребителей (часов на потребителя)","План на отчетный период"]
[null,null,null,null,null,null,"Факт на начало реализации программы**"]
[null,null,null,null,"7.3","Продолжительность (бесперебойность) поставки товаров и услуг (час/день)","План на отчетный период"]
[null,null,null,null,null,null,"Факт на начало реализации программы**"]
[null,null,null,null,"7.4","Уровень потерь и неучтенного потребления (%)","План на отчетный период"]
[null,null,null,null,null,null,"Факт на начало реализации программы**"]
[null,null,null,null,"7.5","Обеспеченность потребления товаров и услуг приборами учета (%)","План на отчетный период"]
[null,null,null,null,null,null,"Факт на начало реализации программы**"]
[null,null,null,null,"7.6","Численность населения, пользующегося услугами данной организации, чел.","План на отчетный период"]
[null,null,null,null,null,null,"Факт на начало реализации программы**"]
[null,null,null,null,"7.7","Удельное водопотребление, куб.м/чел","План на отчетный период"]
[null,null,null,null,null,null,"Факт на начало реализации программы**"]
[null,null,null,null,"7.8","Расход электороэнергии на поставку 1 куб.м. холодной воды, кВт∙ч/куб.м.","План на отчетный период"]
[null,null,null,null,null,null,"Факт на начало реализации программы**"]
[null,null,null,null,"7.9","Количество аварий на 1 км сетей холодного водоснабжения, ед.","План на отчетный период"]
[null,null,null,null,null,null,"Факт на начало реализации программы**"]
[null,null,null,null,"7.10","Производительность труда, куб.м/чел.","План на отчетный период"]
[null,null,null,null,null,null,"Факт на начало реализации программы**"]
[null,null,null,null,null,"Добавить показатель"]
[null,"Удалить мероприятие"]
[null,null,null,null,"*","Раскрывается не позднее 30 дней со дня принятия соответствующего решения об установлении тарифа(надбавки) на очередной период регулирования."]
[null,null,null,null,"**","На последнюю дату отчетного периода, предшествующего периоду начала реализации инвестиционной программы."]

{"sheet":"ХВС показатели(техническая)","index":6,"n_rows":83,"n_cols":8,"rows_kept":83,"cut":false,"hidden":true,"merged":[[82,5,82,7],[6,4,6,7],[7,4,7,7]]}
[]
[]
[]
[]
[]
[]
[null,null,null,null,"Информация об основных показателях финансово-хозяйственной деятельности регулируемых организаций, включая структуру основных производственных затрат\n(в части регулируемой деятельности) (Техническая вода)"]
[]
[]
[]
[null,null,null,null,"№ п/п","Наименование показателя","Единица измерения","Значение"]
[null,null,null,null,"1","2","3","4"]
[null,null,null,null,"1","Вид регулируемой деятельности","x",{"$f":"IF(activity = \"\",\"\",activity)","v":"Водоснабжение (подъем, очистка, транспортировка)"}]
[null,null,null,null,"2","Выручка от регулируемой деятельности","тыс.руб."]
[null,null,null,null,3,"Себестоимость производимых товаров (оказываемых услуг) по регулируемому виду деятельности, в том числе:","тыс.руб.",{"$f":"H16+H20+H23+SUM(H33:H37)+H40+H43+H46+SUM(H51:H52)","v":0}]
[null,null,null,null,"3.1","Покупная вода, в том числе:","тыс.руб.",{"$f":"SUM(H17:H19)","v":0}]
[null,null,null,null,"3.1.1","технического качества","тыс.руб."]
[null,null,null,null,"3.1.2","питьевого качества","тыс.руб."]
[null,null,null,null,"3.1.3","покупка потерь","тыс.руб."]
[null,null,null,null,"3.2","Расходы на покупаемую электрическую энергию (мощность), потребляемую оборудованием, используемым в технологическом процессе:","тыс.руб."]
[null,null,null,null,"3.2.1","средневзвешенная стоимость 1 кВт*ч","руб.",{"$f":"nerr(H20/H22)","v":0}]
[null,null,null,null,"3.2.2","объем приобретенной электрической энергии","тыс.кВт*ч"]
[null,null,null,null,"3.3","Расходы на химреагенты, используемые в технологическом процессе:","тыс.руб."]
[null,null,null,null,"3.3.1","Справочно: количество использованного реагента, в том числе:","тонн",{"$f":"SUM(H25:H32)","v":0}]
[null,null,null,null,"3.3.1.1","хлора (всех видов)","тонн"]
[null,null,null,null,"3.3.1.2","алюминия сульфата","тонн"]
[null,null,null,null,"3.3.1.3","гипохлорита натрия","тонн"]
[null,null,null,null,"3.3.1.4","гипохлорита кальция","тонн"]
[null,null,null,null,"3.3.1.5","аммиака","тонн"]
[null,null,null,null,"3.3.1.6","активированного угля","тонн"]
[null,null,null,null,"3.3.1.7","коагулянтов и флокулянтов","тонн"]
[null,null,null,null,"3.3.1.8","прочих","тонн"]
[null,null,null,null,"3.4","Расходы на оплату труда основного производственного персонала","тыс.руб."]
[null,null,null,null,"3.5","Отчисления на социальные нужды основного производственного персонала","тыс.руб."]
[null,null,null,null,"3.6","Расходы на амортизацию основных производственных средств","тыс.руб."]
[null,null,null,null,"3.7","Расходы на аренду имущества, используемого в технологическом процессе","тыс.руб."]
[null,null,null,null,"3.8","Общепроизводственные (цеховые) расходы","тыс.руб."]
[null,null,null,null,"3.8.1","расходы на оплату труда","тыс.руб."]
[null,null,null,null,"3.8.2","отчисления на социальные нужды","тыс.руб."]
[null,null,null,null,"3.9","Общехозяйственные (управленческие) расходы","тыс.руб."]
[null,null,null,null,"3.9.1","расходы на оплату труда","тыс.руб."]
[null,null,null,null,"3.9.2","отчисления на социальные нужды","тыс.руб."]
[null,null,null,null,"3.10","Расходы на ремонт (капитальный и текущий) основных производственных средств, в том числе:","тыс.руб."]
[null,null,null,null,"3.10.1","Справочно: расходы на капитальный ремонт основных производственных средств","тыс.руб."]
[null,null,null,null,"3.10.2","Справочно: расходы на текущий ремонт основных производственных средств","тыс.руб."]
[null,null,null,null,"3.11","Расходы на техническое обслуживание основных производственных средств, в том числе:","тыс.руб."]
[null,null,null,null,"3.11.1","заработная плата ремонтного персонала","тыс.руб."]
[null,null,null,null,"3.11.2","среднемесячная оплата труда рабочего 1 разряда (в случае отсутствия тарифной сетки - средняя оплата труда рабочих)","тыс.руб."]
[null,null,null,null,"3.11.3","численность ремонтного персонала на конец отчетного периода","чел."]
[null,null,null,null,"3.11.4","отчисления на соц. нужды от заработной платы ремонтного персонала","тыс.руб."]
[null,null,null,null,"3.12","Расходы на услуги производственного характера, выполняемые по договорам с организациями на проведение регламентных работ в рамках технологического процесса","тыс.руб."]
[null,null,null,null,null,"Добавить запись"]
[null,null,null,null,"4","Валовая прибыль от продажи товаров и услуг по регулируемому виду деятельности","тыс.руб."]
[null,null,null,null,"5","Чистая прибыль по регулируемому виду деятельности, в том числе: ","тыс.руб."]
[null,null,null,null,"5.1","чистая прибыль на финансирование мероприятий, предусмотренных инвестиционной программой по развитию системы холодного водоснабжения","тыс.руб."]
[null,null,null,null,"6","Поднято воды, в том числе:","тыс.куб.м",{"$f":"SUM(H57:H58)","v":0}]
[null,null,null,null,"6.1","из подземных водоисточников","тыс.куб.м"]
[null,null,null,null,"6.2","из поверхностных водоисточников","тыс.куб.м"]
[null,null,null,null,"7","Получено воды со стороны, в том числе:","тыс.куб.м",{"$f":"SUM(H60:H61)","v":0}]
[null,null,null,null,"7.1","технического качества","тыс.куб.м"]
[null,null,null,null,"7.2","питьевого качества","тыс.куб.м"]
[null,null,null,null,"8","Объем воды, пропущенной через очистные сооружения","тыс.куб.м"]
[null,null,null,null,"9","Объем отпущенной потребителям воды, в том числе:","тыс.куб.м",{"$f":"SUM(H64:H65)","v":0}]
[null,null,null,null,"9.1","по приборам учета","тыс.куб.м"]
[null,null,null,null,"9.2","по нормативам потребления (расчетным методом)","тыс.куб.м"]
[null,null,null,null,"10","Потери воды в сетях (от забора воды), в том числе:","%"]
[null,null,null,null,"10.1","нормативные","%"]
[null,null,null,null,"10.2","фактические (разница между забором и реализацией)","%"]
[null,null,null,null,"11","Протяженность водопроводных сетей (в однотрубном исчислении)","км"]
[null,null,null,null,"12","Количество скважин","ед."]
[null,null,null,null,"13","Количество подкачивающих насосных станций","ед."]
[null,null,null,null,"14","Среднесписочная численность основного производственного персонала (человек)","чел."]
[null,null,null,null,"15","Удельный расход электроэнергии на подачу воды в сеть, в том числе:","кВт·ч/куб.м",{"$f":"SUM(H74:H76)","v":0}]
[null,null,null,null,"15.1","забор воды","кВт·ч/куб.м"]
[null,null,null,null,"15.2","очистка","кВт·ч/куб.м"]
[null,null,null,null,"15.3","транспортировка","кВт·ч/куб.м"]
[null,null,null,null,"16","Расход воды на собственные нужды","тыс.куб.м"]
[null,null,null,null,"16.1","в том числе хозяйственно-бытовые","тыс.куб.м"]
[null,null,null,null,"17","Показатели использования производственных объектов (по объему перекачки) по отношению к пиковому дню отчетного года","x","x"]
[null,null,null,null,"17.0"]
[null,null,null,null,null,"Добавить объект"]
[null,null,null,null,18,"Комментарии"]
[null,null,null,null,"*","Раскрывается не позднее 30 дней со дня принятия соответствующего решения об установлении тарифа(надбавки) на очередной период регулирования."]

{"sheet":"ХВС показатели(питьевая)","index":7,"n_rows":84,"n_cols":8,"rows_kept":84,"cut":false,"hidden":false,"merged":[[83,5,83,7],[6,4,6,7],[7,4,7,7]]}
[]
[]
[]
[]
[]
[]
[null,null,null,null,"Информация об основных показателях финансово-хозяйственной деятельности регулируемых организаций, включая структуру основных производственных затрат\n(в части регулируемой деятельности) (Питьевая вода)"]
[]
[]
[]
[null,null,null,null,"№ п/п","Наименование показателя","Единица измерения","Значение"]
[null,null,null,null,"1","2","3","4"]
[null,null,null,null,"1","Вид регулируемой деятельности","x",{"$f":"IF(activity = \"\",\"\",activity)","v":"Водоснабжение (подъем, очистка, транспортировка)"}]
[null,null,null,null,"2","Выручка от регулируемой деятельности","тыс.руб.",3065.34]
[null,null,null,null,3,"Себестоимость производимых товаров (оказываемых услуг) по регулируемому виду деятельности, в том числе:","тыс.руб.",{"$f":"H16+H20+H23+SUM(H33:H37)+H40+H43+H46+SUM(H51:H53)","v":3065.34}]
[null,null,null,null,"3.1","Покупная вода, в том числе:","тыс.руб.",{"$f":"SUM(H17:H19)","v":453.04}]
[null,null,null,null,"3.1.1","технического качества","тыс.руб.",0]
[null,null,null,null,"3.1.2","питьевого качества","тыс.руб.",453.04]
[null,null,null,null,"3.1.3","покупка потерь","тыс.руб.",0]
[null,null,null,null,"3.2","Расходы на покупаемую электрическую энергию (мощность), потребляемую оборудованием, используемым в технологическом процессе:","тыс.руб.",307.39999999999998]
[null,null,null,null,"3.2.1","средневзвешенная стоимость 1 кВт*ч","руб.",{"$f":"nerr(H20/H22)","v":4.8076321551454484}]
[null,null,null,null,"3.2.2","объем приобретенной электрической энергии","тыс.кВт*ч",63.94]
[null,null,null,null,"3.3","Расходы на химреагенты, используемые в технологическом процессе:","тыс.руб.",0]
[null,null,null,null,"3.3.1","Справочно: количество использованного реагента, в том числе:","тонн",{"$f":"SUM(H25:H32)","v":0}]
[null,null,null,null,"3.3.1.1","хлора (всех видов)","тонн",0]
[null,null,null,null,"3.3.1.2","алюминия сульфата","тонн",0]
[null,null,null,null,"3.3.1.3","гипохлорита натрия","тонн",0]
[null,null,null,null,"3.3.1.4","гипохлорита кальция","тонн",0]
[null,null,null,null,"3.3.1.5","аммиака","тонн",0]
[null,null,null,null,"3.3.1.6","активированного угля","тонн",0]
[null,null,null,null,"3.3.1.7","коагулянтов и флокулянтов","тонн",0]
[null,null,null,null,"3.3.1.8","прочих","тонн",0]
[null,null,null,null,"3.4","Расходы на оплату труда основного производственного персонала","тыс.руб.",0]
[null,null,null,null,"3.5","Отчисления на социальные нужды основного производственного персонала","тыс.руб.",0]
[null,null,null,null,"3.6","Расходы на амортизацию основных производственных средств","тыс.руб.",357.04]
[null,null,null,null,"3.7","Расходы на аренду имущества, используемого в технологическом процессе","тыс.руб.",0]
[null,null,null,null,"3.8","Общепроизводственные (цеховые) расходы","тыс.руб.",0]
[null,null,null,null,"3.8.1","расходы на оплату труда","тыс.руб.",0]
[null,null,null,null,"3.8.2","отчисления на социальные нужды","тыс.руб.",0]
[null,null,null,null,"3.9","Общехозяйственные (управленческие) расходы","тыс.руб.",0]
[null,null,null,null,"3.9.1","расходы на оплату труда","тыс.руб.",0]
[null,null,null,null,"3.9.2","отчисления на социальные нужды","тыс.руб.",0]
[null,null,null,null,"3.10","Расходы на ремонт (капитальный и текущий) основных производственных средств, в том числе:","тыс.руб.",295.89]
[null,null,null,null,"3.10.1","Справочно: расходы на капитальный ремонт основных производственных средств","тыс.руб.",0]
[null,null,null,null,"3.10.2","Справочно: расходы на текущий ремонт основных производственных средств","тыс.руб.",295.89]
[null,null,null,null,"3.11","Расходы на техническое обслуживание основных производственных средств, в том числе:","тыс.руб.",0]
[null,null,null,null,"3.11.1","заработная плата ремонтного персонала","тыс.руб.",0]
[null,null,null,null,"3.11.2","среднемесячная оплата труда рабочего 1 разряда (в случае отсутствия тарифной сетки - средняя оплата труда рабочих)","тыс.руб.",0]
[null,null,null,null,"3.11.3","численность ремонтного персонала на конец отчетного периода","чел.",0]
[null,null,null,null,"3.11.4","отчисления на соц. нужды от заработной платы ремонтного персонала","тыс.руб.",0]
[null,null,null,null,"3.12","Расходы на услуги производственного характера, выполняемые по договорам с организациями на проведение регламентных работ в рамках технологического процесса","тыс.руб.",966.27]
[null,null,null,"ы","3.13","Прочие","тыс.руб.",{"$f":"3065.34-2379.64","v":685.70000000000027}]
[null,null,null,null,null,"Добавить запись"]
[null,null,null,null,"4","Валовая прибыль от продажи товаров и услуг по регулируемому виду деятельности","тыс.руб.",0]
[null,null,null,null,"5","Чистая прибыль по регулируемому виду деятельности, в том числе: ","тыс.руб.",0]
[null,null,null,null,"5.1","чистая прибыль на финансирование мероприятий, предусмотренных инвестиционной программой по развитию системы холодного водоснабжения","тыс.руб.",0]
[null,null,null,null,"6","Поднято воды, в том числе:","тыс.куб.м",{"$f":"SUM(H58:H59)","v":55}]
[null,null,null,null,"6.1","из подземных водоисточников","тыс.куб.м",55]
[null,null,null,null,"6.2","из поверхностных водоисточников","тыс.куб.м",0]
[null,null,null,null,"7","Получено воды со стороны, в том числе:","тыс.куб.м",{"$f":"SUM(H61:H62)","v":0}]
[null,null,null,null,"7.1","технического качества","тыс.куб.м",0]
[null,null,null,null,"7.2","питьевого качества","тыс.куб.м",0]
[null,null,null,null,"8","Объем воды, пропущенной через очистные сооружения","тыс.куб.м",0]
[null,null,null,null,"9","Объем отпущенной потребителям воды, в том числе:","тыс.куб.м",{"$f":"SUM(H65:H66)","v":55}]
[null,null,null,null,"9.1","по приборам учета","тыс.куб.м",55]
[null,null,null,null,"9.2","по нормативам потребления (расчетным методом)","тыс.куб.м",0]
[null,null,null,null,"10","Потери воды в сетях (от забора воды), в том числе:","%",3.4]
[null,null,null,null,"10.1","нормативные","%",3.4]
[null,null,null,null,"10.2","фактические (разница между забором и реализацией)","%",0]
[null,null,null,null,"11","Протяженность водопроводных сетей (в однотрубном исчислении)","км",11.959]
[null,null,null,null,"12","Количество скважин","ед.",8]
[null,null,null,null,"13","Количество подкачивающих насосных станций","ед.",0]
[null,null,null,null,"14","Среднесписочная численность основного производственного персонала (человек)","чел.",0]
[null,null,null,null,"15","Удельный расход электроэнергии на подачу воды в сеть, в том числе:","кВт·ч/куб.м",{"$f":"SUM(H75:H77)","v":1.163}]
[null,null,null,null,"15.1","забор воды","кВт·ч/куб.м",1.163]
[null,null,null,null,"15.2","очистка","кВт·ч/куб.м",0]
[null,null,null,null,"15.3","транспортировка","кВт·ч/куб.м",0]
[null,null,null,null,"16","Расход воды на собственные нужды","тыс.куб.м",48.899000000000001]
[null,null,null,null,"16.1","в том числе хозяйственно-бытовые","тыс.куб.м",0]
[null,null,null,null,"17","Показатели использования производственных объектов (по объему перекачки) по отношению к пиковому дню отчетного года","x","x"]
[null,null,null,null,"17.0"]
[null,null,null,null,null,"Добавить объект"]
[null,null,null,null,18,"Комментарии",null,"-"]
[null,null,null,null,"*","Раскрывается не позднее 30 дней со дня принятия соответствующего решения об установлении тарифа(надбавки) на очередной период регулирования."]

{"sheet":"ХВС показатели(подвозная)","index":8,"n_rows":83,"n_cols":8,"rows_kept":83,"cut":false,"hidden":true,"merged":[[82,5,82,7],[6,4,6,7],[7,4,7,7]]}
[]
[]
[]
[]
[]
[]
[null,null,null,null,"Информация об основных показателях финансово-хозяйственной деятельности регулируемых организаций, включая структуру основных производственных затрат\n(в части регулируемой деятельности) (Подвозная вода)"]
[]
[]
[]
[null,null,null,null,"№ п/п","Наименование показателя","Единица измерения","Значение"]
[null,null,null,null,"1","2","3","4"]
[null,null,null,null,"1","Вид регулируемой деятельности","x",{"$f":"IF(activity = \"\",\"\",activity)","v":"Водоснабжение (подъем, очистка, транспортировка)"}]
[null,null,null,null,"2","Выручка от регулируемой деятельности","тыс.руб."]
[null,null,null,null,3,"Себестоимость производимых товаров (оказываемых услуг) по регулируемому виду деятельности, в том числе:","тыс.руб.",{"$f":"H16+H20+H23+SUM(H33:H37)+H40+H43+H46+SUM(H51:H52)","v":0}]
[null,null,null,null,"3.1","Покупная вода, в том числе:","тыс.руб.",{"$f":"SUM(H17:H19)","v":0}]
[null,null,null,null,"3.1.1","технического качества","тыс.руб."]
[null,null,null,null,"3.1.2","питьевого качества","тыс.руб."]
[null,null,null,null,"3.1.3","покупка потерь","тыс.руб."]
[null,null,null,null,"3.2","Расходы на покупаемую электрическую энергию (мощность), потребляемую оборудованием, используемым в технологическом процессе:","тыс.руб."]
[null,null,null,null,"3.2.1","средневзвешенная стоимость 1 кВт*ч","руб.",{"$f":"nerr(H20/H22)","v":0}]
[null,null,null,null,"3.2.2","объем приобретенной электрической энергии","тыс.кВт*ч"]
[null,null,null,null,"3.3","Расходы на химреагенты, используемые в технологическом процессе:","тыс.руб."]
[null,null,null,null,"3.3.1","Справочно: количество использованного реагента, в том числе:","тонн",{"$f":"SUM(H25:H32)","v":0}]
[null,null,null,null,"3.3.1.1","хлора (всех видов)","тонн"]
[null,null,null,null,"3.3.1.2","алюминия сульфата","тонн"]
[null,null,null,null,"3.3.1.3","гипохлорита натрия","тонн"]
[null,null,null,null,"3.3.1.4","гипохлорита кальция","тонн"]
[null,null,null,null,"3.3.1.5","аммиака","тонн"]
[null,null,null,null,"3.3.1.6","активированного угля","тонн"]
[null,null,null,null,"3.3.1.7","коагулянтов и флокулянтов","тонн"]
[null,null,null,null,"3.3.1.8","прочих","тонн"]
[null,null,null,null,"3.4","Расходы на оплату труда основного производственного персонала","тыс.руб."]
[null,null,null,null,"3.5","Отчисления на социальные нужды основного производственного персонала","тыс.руб."]
[null,null,null,null,"3.6","Расходы на амортизацию основных производственных средств","тыс.руб."]
[null,null,null,null,"3.7","Расходы на аренду имущества, используемого в технологическом процессе","тыс.руб."]
[null,null,null,null,"3.8","Общепроизводственные (цеховые) расходы","тыс.руб."]
[null,null,null,null,"3.8.1","расходы на оплату труда","тыс.руб."]
[null,null,null,null,"3.8.2","отчисления на социальные нужды","тыс.руб."]
[null,null,null,null,"3.9","Общехозяйственные (управленческие) расходы","тыс.руб."]
[null,null,null,null,"3.9.1","расходы на оплату труда","тыс.руб."]
[null,null,null,null,"3.9.2","отчисления на социальные нужды","тыс.руб."]
[null,null,null,null,"3.10","Расходы на ремонт (капитальный и текущий) основных производственных средств, в том числе:","тыс.руб."]
[null,null,null,null,"3.10.1","Справочно: расходы на капитальный ремонт основных производственных средств","тыс.руб."]
[null,null,null,null,"3.10.2","Справочно: расходы на текущий ремонт основных производственных средств","тыс.руб."]
[null,null,null,null,"3.11","Расходы на техническое обслуживание основных производственных средств, в том числе:","тыс.руб."]
[null,null,null,null,"3.11.1","заработная плата ремонтного персонала","тыс.руб."]
[null,null,null,null,"3.11.2","среднемесячная оплата труда рабочего 1 разряда (в случае отсутствия тарифной сетки - средняя оплата труда рабочих)","тыс.руб."]
[null,null,null,null,"3.11.3","численность ремонтного персонала на конец отчетного периода","чел."]
[null,null,null,null,"3.11.4","отчисления на соц. нужды от заработной платы ремонтного персонала","тыс.руб."]
[null,null,null,null,"3.12","Расходы на услуги производственного характера, выполняемые по договорам с организациями на проведение регламентных работ в рамках технологического процесса","тыс.руб."]
[null,null,null,null,null,"Добавить запись"]
[null,null,null,null,"4","Валовая прибыль от продажи товаров и услуг по регулируемому виду деятельности","тыс.руб."]
[null,null,null,null,"5","Чистая прибыль по регулируемому виду деятельности, в том числе: ","тыс.руб."]
[null,null,null,null,"5.1","чистая прибыль на финансирование мероприятий, предусмотренных инвестиционной программой по развитию системы холодного водоснабжения","тыс.руб."]
[null,null,null,null,"6","Поднято воды, в том числе:","тыс.куб.м",{"$f":"SUM(H57:H58)","v":0}]
[null,null,null,null,"6.1","из подземных водоисточников","тыс.куб.м"]
[null,null,null,null,"6.2","из поверхностных водоисточников","тыс.куб.м"]
[null,null,null,null,"7","Получено воды со стороны, в том числе:","тыс.куб.м",{"$f":"SUM(H60:H61)","v":0}]
[null,null,null,null,"7.1","технического качества","тыс.куб.м"]
[null,null,null,null,"7.2","питьевого качества","тыс.куб.м"]
[null,null,null,null,"8","Объем воды, пропущенной через очистные сооружения","тыс.куб.м"]
[null,null,null,null,"9","Объем отпущенной потребителям воды, в том числе:","тыс.куб.м",{"$f":"SUM(H64:H65)","v":0}]
[null,null,null,null,"9.1","по приборам учета","тыс.куб.м"]
[null,null,null,null,"9.2","по нормативам потребления (расчетным методом)","тыс.куб.м"]
[null,null,null,null,"10","Потери воды в сетях (от забора воды), в том числе:","%"]
[null,null,null,null,"10.1","нормативные","%"]
[null,null,null,null,"10.2","фактические (разница между забором и реализацией)","%"]
[null,null,null,null,"11","Протяженность водопроводных сетей (в однотрубном исчислении)","км"]
[null,null,null,null,"12","Количество скважин","ед."]
[null,null,null,null,"13","Количество подкачивающих насосных станций","ед."]
[null,null,null,null,"14","Среднесписочная численность основного производственного персонала (человек)","чел."]
[null,null,null,null,"15","Удельный расход электроэнергии на подачу воды в сеть, в том числе:","кВт·ч/куб.м",{"$f":"SUM(H74:H76)","v":0}]
[null,null,null,null,"15.1","забор воды","кВт·ч/куб.м"]
[null,null,null,null,"15.2","очистка","кВт·ч/куб.м"]
[null,null,null,null,"15.3","транспортировка","кВт·ч/куб.м"]
[null,null,null,null,"16","Расход воды на собственные нужды","тыс.куб.м"]
[null,null,null,null,"16.1","в том числе хозяйственно-бытовые","тыс.куб.м"]
[null,null,null,null,"17","Показатели использования производственных объектов (по объему перекачки) по отношению к пиковому дню отчетного года","x","x"]
[null,null,null,null,"17.0"]
[null,null,null,null,null,"Добавить объект"]
[null,null,null,null,18,"Комментарии"]
[null,null,null,null,"*","Раскрывается не позднее 30 дней со дня принятия соответствующего решения об установлении тарифа(надбавки) на очередной период регулирования."]

{"sheet":"ХВС показатели(другое)","index":9,"n_rows":83,"n_cols":8,"rows_kept":83,"cut":false,"hidden":true,"merged":[[82,5,82,7],[6,4,6,7],[7,4,7,7]]}
[]
[]
[]
[]
[]
[]
[null,null,null,null,"Информация об основных показателях финансово-хозяйственной деятельности регулируемых организаций, включая структуру основных производственных затрат\n(в части регулируемой деятельности) (Другое)"]
[]
[]
[]
[null,null,null,null,"№ п/п","Наименование показателя","Единица измерения","Значение"]
[null,null,null,null,"1","2","3","4"]
[null,null,null,null,"1","Вид регулируемой деятельности","x",{"$f":"IF(activity = \"\",\"\",activity)","v":"Водоснабжение (подъем, очистка, транспортировка)"}]
[null,null,null,null,"2","Выручка от регулируемой деятельности","тыс.руб."]
[null,null,null,null,3,"Себестоимость производимых товаров (оказываемых услуг) по регулируемому виду деятельности, в том числе:","тыс.руб.",{"$f":"H16+H20+H23+SUM(H33:H37)+H40+H43+H46+SUM(H51:H52)","v":0}]
[null,null,null,null,"3.1","Покупная вода, в том числе:","тыс.руб.",{"$f":"SUM(H17:H19)","v":0}]
[null,null,null,null,"3.1.1","технического качества","тыс.руб."]
[null,null,null,null,"3.1.2","питьевого качества","тыс.руб."]
[null,null,null,null,"3.1.3","покупка потерь","тыс.руб."]
[null,null,null,null,"3.2","Расходы на покупаемую электрическую энергию (мощность), потребляемую оборудованием, используемым в технологическом процессе:","тыс.руб."]
[null,null,null,null,"3.2.1","средневзвешенная стоимость 1 кВт*ч","руб.",{"$f":"nerr(H20/H22)","v":0}]
[null,null,null,null,"3.2.2","объем приобретенной электрической энергии","тыс.кВт*ч"]
[null,null,null,null,"3.3","Расходы на химреагенты, используемые в технологическом процессе:","тыс.руб."]
[null,null,null,null,"3.3.1","Справочно: количество использованного реагента, в том числе:","тонн",{"$f":"SUM(H25:H32)","v":0}]
[null,null,null,null,"3.3.1.1","хлора (всех видов)","тонн"]
[null,null,null,null,"3.3.1.2","алюминия сульфата","тонн"]
[null,null,null,null,"3.3.1.3","гипохлорита натрия","тонн"]
[null,null,null,null,"3.3.1.4","гипохлорита кальция","тонн"]
[null,null,null,null,"3.3.1.5","аммиака","тонн"]
[null,null,null,null,"3.3.1.6","активированного угля","тонн"]
[null,null,null,null,"3.3.1.7","коагулянтов и флокулянтов","тонн"]
[null,null,null,null,"3.3.1.8","прочих","тонн"]
[null,null,null,null,"3.4","Расходы на оплату труда основного производственного персонала","тыс.руб."]
[null,null,null,null,"3.5","Отчисления на социальные нужды основного производственного персонала","тыс.руб."]
[null,null,null,null,"3.6","Расходы на амортизацию основных производственных средств","тыс.руб."]
[null,null,null,null,"3.7","Расходы на аренду имущества, используемого в технологическом процессе","тыс.руб."]
[null,null,null,null,"3.8","Общепроизводственные (цеховые) расходы","тыс.руб."]
[null,null,null,null,"3.8.1","расходы на оплату труда","тыс.руб."]
[null,null,null,null,"3.8.2","отчисления на социальные нужды","тыс.руб."]
[null,null,null,null,"3.9","Общехозяйственные (управленческие) расходы","тыс.руб."]
[null,null,null,null,"3.9.1","расходы на оплату труда","тыс.руб."]
[null,null,null,null,"3.9.2","отчисления на социальные нужды","тыс.руб."]
[null,null,null,null,"3.10","Расходы на ремонт (капитальный и текущий) основных производственных средств, в том числе:","тыс.руб."]
[null,null,null,null,"3.10.1","Справочно: расходы на капитальный ремонт основных производственных средств","тыс.руб."]
[null,null,null,null,"3.10.2","Справочно: расходы на текущий ремонт основных производственных средств","тыс.руб."]
[null,null,null,null,"3.11","Расходы на техническое обслуживание основных производственных средств, в том числе:","тыс.руб."]
[null,null,null,null,"3.11.1","заработная плата ремонтного персонала","тыс.руб."]
[null,null,null,null,"3.11.2","среднемесячная оплата труда рабочего 1 разряда (в случае отсутствия тарифной сетки - средняя оплата труда рабочих)","тыс.руб."]
[null,null,null,null,"3.11.3","численность ремонтного персонала на конец отчетного периода","чел."]
[null,null,null,null,"3.11.4","отчисления на соц. нужды от заработной платы ремонтного персонала","тыс.руб."]
[null,null,null,null,"3.12","Расходы на услуги производственного характера, выполняемые по договорам с организациями на проведение регламентных работ в рамках технологического процесса","тыс.руб."]
[null,null,null,null,null,"Добавить запись"]
[null,null,null,null,"4","Валовая прибыль от продажи товаров и услуг по регулируемому виду деятельности","тыс.руб."]
[null,null,null,null,"5","Чистая прибыль по регулируемому виду деятельности, в том числе: ","тыс.руб."]
[null,null,null,null,"5.1","чистая прибыль на финансирование мероприятий, предусмотренных инвестиционной программой по развитию системы холодного водоснабжения","тыс.руб."]
[null,null,null,null,"6","Поднято воды, в том числе:","тыс.куб.м",{"$f":"SUM(H57:H58)","v":0}]
[null,null,null,null,"6.1","из подземных водоисточников","тыс.куб.м"]
[null,null,null,null,"6.2","из поверхностных водоисточников","тыс.куб.м"]
[null,null,null,null,"7","Получено воды со стороны, в том числе:","тыс.куб.м",{"$f":"SUM(H60:H61)","v":0}]
[null,null,null,null,"7.1","технического качества","тыс.куб.м"]
[null,null,null,null,"7.2","питьевого качества","тыс.куб.м"]
[null,null,null,null,"8","Объем воды, пропущенной через очистные сооружения","тыс.куб.м"]
[null,null,null,null,"9","Объем отпущенной потребителям воды, в том числе:","тыс.куб.м",{"$f":"SUM(H64:H65)","v":0}]
[null,null,null,null,"9.1","по приборам учета","тыс.куб.м"]
[null,null,null,null,"9.2","по нормативам потребления (расчетным методом)","тыс.куб.м"]
[null,null,null,null,"10","Потери воды в сетях (от забора воды), в том числе:","%"]
[null,null,null,null,"10.1","нормативные","%"]
[null,null,null,null,"10.2","фактические (разница между забором и реализацией)","%"]
[null,null,null,null,"11","Протяженность водопроводных сетей (в однотрубном исчислении)","км"]
[null,null,null,null,"12","Количество скважин","ед."]
[null,null,null,null,"13","Количество подкачивающих насосных станций","ед."]
[null,null,null,null,"14","Среднесписочная численность основного производственного персонала (человек)","чел."]
[null,null,null,null,"15","Удельный расход электроэнергии на подачу воды в сеть, в том числе:","кВт·ч/куб.м",{"$f":"SUM(H74:H76)","v":0}]
[null,null,null,null,"15.1","забор воды","кВт·ч/куб.м"]
[null,null,null,null,"15.2","очистка","кВт·ч/куб.м"]
[null,null,null,null,"15.3","транспортировка","кВт·ч/куб.м"]
[null,null,null,null,"16","Расход воды на собственные нужды","тыс.куб.м"]
[null,null,null,null,"16.1","в том числе хозяйственно-бытовые","тыс.куб.м"]
[null,null,null,null,"17","Показатели использования производственных объектов (по объему перекачки) по отношению к пиковому дню отчетного года","x","x"]
[null,null,null,null,"17.0"]
[null,null,null,null,null,"Добавить объект"]
[null,null,null,null,18,"Комментарии"]
[null,null,null,null,"*","Раскрывается не позднее 30 дней со дня принятия соответствующего решения об установлении тарифа(надбавки) на очередной период регулирования."]

{"sheet":"ХВС показатели (2)(техническая)","index":10,"n_rows":28,"n_cols":13,"rows_kept":28,"cut":false,"hidden":true,"merged":[[15,4,18,4],[15,5,18,5],[16,6,17,6],[16,7,17,7],[5,3,5,5],[7,3,7,13],[13,5,13,10],[14,5,14,10],[6,4,6,12],[20,5,20,10],[21,5,21,10],[22,4,25,4],[22,5,25,5],[23,6,24,6],[23,7,24,7]]}
[]
[]
[]
[]
[]
[]
[null,null,null,null,"Информация об объемах товаров и услуг, их стоимости и способах приобретения (Техническая вода)"]
[]
[]
[]
[]
[null,null,null,null,"№ п/п","Наименование поставщика","Способ приобретения","Реквизиты договора","Наименование товара/услуги","Объем приобретенных товаров, услуг","Единица измерения объема","Стоимость, тыс.руб.","Доля расходов, % (от суммы расходов по указанной статье)"]
[null,null,null,null,1,2,3,4,5,6,7,8,9]
[null,null,null,null,1,"Расходы на ремонт (текущий и капитальный) основных производственных средств итого. Из них:",null,null,null,null,null,{"$f":"costs_OPS_1","v":0}]
[null,null,null,null,"1.1","Товары и услуги, приобретенные у организаций, сумма оплаты услуг которых превышает 20% суммы расходов по статье"]
[null,null,null,null,"1.1.1",null,"Итого по поставщику",null,null,null,null,{"$f":"SUM(L17:L19)","v":0},{"$f":"nerr(L16/costs_OPS_1)*100","v":0}]
[]
[null,null,null,null,null,null,null,null,"Добавить запись"]
[null,null,null,null,null,null,"Добавить способ"]
[null,null,null,null,null,"Добавить поставщика"]
[null,null,null,null,2,"Расходы на услуги производственного характера, выполняемые по договорам с организациями на проведение регламентных работ в рамках технологического процесса. Из них:",null,null,null,null,null,{"$f":"costs_PH_1","v":0}]
[null,null,null,null,"2.1","Товары и услуги, приобретенные у организаций, сумма оплаты услуг которых превышает 20% суммы расходов по статье"]
[null,null,null,null,"2.1.1",null,"Итого по поставщику",null,null,null,null,{"$f":"SUM(L24:L26)","v":0},{"$f":"nerr(L23/costs_PH_1)*100","v":0}]
[]
[null,null,null,null,null,null,null,null,"Добавить запись"]
[null,null,null,null,null,null,"Добавить способ"]
[null,null,null,null,null,"Добавить поставщика"]
[null,null,null,null,"*","Раскрывается не позднее 30 дней со дня принятия соответствующего решения об установлении тарифа(надбавки) на очередной период регулирования."]

{"sheet":"ХВС показатели (2)(питьевая)","index":11,"n_rows":32,"n_cols":13,"rows_kept":32,"cut":false,"hidden":false,"merged":[[15,4,18,4],[15,5,18,5],[16,6,17,6],[16,7,17,7],[5,3,5,5],[7,3,7,13],[13,5,13,10],[14,5,14,10],[6,4,6,12],[26,4,29,4],[26,5,29,5],[27,6,28,6],[27,7,28,7],[20,5,20,10],[21,5,21,10],[22,4,25,4],[22,5,25,5],[23,6,24,6],[23,7,24,7]]}
[]
[]
[]
[]
[]
[]
[null,null,null,null,"Информация об объемах товаров и услуг, их стоимости и способах приобретения (Питьевая вода)"]
[]
[]
[]
[]
[null,null,null,null,"№ п/п","Наименование поставщика","Способ приобретения","Реквизиты договора","Наименование товара/услуги","Объем приобретенных товаров, услуг","Единица измерения объема","Стоимость, тыс.руб.","Доля расходов, % (от суммы расходов по указанной статье)"]
[null,null,null,null,1,2,3,4,5,6,7,8,9]
[null,null,null,null,1,"Расходы на ремонт (текущий и капитальный) основных производственных средств итого. Из них:",null,null,null,null,null,{"$f":"costs_OPS_2","v":295.89}]
[null,null,null,null,"1.1","Товары и услуги, приобретенные у организаций, сумма оплаты услуг которых превышает 20% суммы расходов по статье"]
[null,null,null,null,"1.1.1","ОАО \"Ремонт инженерных коммуникаций\"","Итого по поставщику",null,null,null,null,{"$f":"SUM(L17:L19)","v":0},{"$f":"nerr(L16/costs_OPS_2)*100","v":0}]
[null,null,null,null,null,null,"торги/аукционы","№22-07/15-260 от 30.01.15","выполнение ремонтных работ",0,"0",0]
[null,null,null,null,null,null,null,null,"Добавить запись"]
[null,null,null,null,null,null,"Добавить способ"]
[null,null,null,null,null,"Добавить поставщика"]
[null,null,null,null,2,"Расходы на услуги производственного характера, выполняемые по договорам с организациями на проведение регламентных работ в рамках технологического процесса. Из них:",null,null,null,null,null,{"$f":"costs_PH_2","v":966.27}]
[null,null,null,null,"2.1","Товары и услуги, приобретенные у организаций, сумма оплаты услуг которых превышает 20% суммы расходов по статье"]
[null,null,null,null,"2.1.1","ООО \"Теплоэнергоремонт\"","Итого по поставщику",null,null,null,null,{"$f":"SUM(L24:L26)","v":0},{"$f":"nerr(L23/costs_PH_2)*100","v":0}]
[null,null,null,null,null,null,"торги/аукционы","№22-07/16-114/03-244Д36-125 от 10.12.2015","техническое обслуживание водопроводных сетей",0,"0",0]
[null,null,null,null,null,null,null,null,"Добавить запись"]
[null,null,null,null,null,null,"Добавить способ"]
[null,null,null,"ы","2.1.2","ООО \"Теплоэнергоремонт\"","Итого по поставщику",null,null,null,null,{"$f":"SUM(L28:L30)","v":0},{"$f":"nerr(L27/costs_PH_2)*100","v":0}]
[null,null,null,null,null,null,"торги/аукционы","№22-07/17-107/03-152Д36-116 от 08.12.2016","техническое обслуживание водопроводных сетей",0,"0",0]
[null,null,null,null,null,null,null,null,"Добавить запись"]
[null,null,null,null,null,null,"Добавить способ"]
[null,null,null,null,null,"Добавить поставщика"]
[null,null,null,null,"*","Раскрывается не позднее 30 дней со дня принятия соответствующего решения об установлении тарифа(надбавки) на очередной период регулирования."]

{"sheet":"ХВС показатели (2)(подвозная)","index":12,"n_rows":28,"n_cols":13,"rows_kept":28,"cut":false,"hidden":true,"merged":[[15,4,18,4],[15,5,18,5],[16,6,17,6],[16,7,17,7],[5,3,5,5],[7,3,7,13],[13,5,13,10],[14,5,14,10],[6,4,6,12],[20,5,20,10],[21,5,21,10],[22,4,25,4],[22,5,25,5],[23,6,24,6],[23,7,24,7]]}
[]
[]
[]
[]
[]
[]
[null,null,null,null,"Информация об объемах товаров и услуг, их стоимости и способах приобретения (Подвозная вода)"]
[]
[]
[]
[]
[null,null,null,null,"№ п/п","Наименование поставщика","Способ приобретения","Реквизиты договора","Наименование товара/услуги","Объем приобретенных товаров, услуг","Единица измерения объема","Стоимость, тыс.руб.","Доля расходов, % (от суммы расходов по указанной статье)"]
[null,null,null,null,1,2,3,4,5,6,7,8,9]
[null,null,null,null,1,"Расходы на ремонт (текущий и капитальный) основных производственных средств итого. Из них:",null,null,null,null,null,{"$f":"costs_OPS_3","v":0}]
[null,null,null,null,"1.1","Товары и услуги, приобретенные у организаций, сумма оплаты услуг которых превышает 20% суммы расходов по статье"]
[null,null,null,null,"1.1.1",null,"Итого по поставщику",null,null,null,null,{"$f":"SUM(L17:L19)","v":0},{"$f":"nerr(L16/costs_OPS_3)*100","v":0}]
[]
[null,null,null,null,null,null,null,null,"Добавить запись"]
[null,null,null,null,null,null,"Добавить способ"]
[null,null,null,null,null,"Добавить поставщика"]
[null,null,null,null,2,"Расходы на услуги производственного характера, выполняемые по договорам с организациями на проведение регламентных работ в рамках технологического процесса. Из них:",null,null,null,null,null,{"$f":"costs_PH_3","v":0}]
[null,null,null,null,"2.1","Товары и услуги, приобретенные у организаций, сумма оплаты услуг которых превышает 20% суммы расходов по статье"]
[null,null,null,null,"2.1.1",null,"Итого по поставщику",null,null,null,null,{"$f":"SUM(L24:L26)","v":0},{"$f":"nerr(L23/costs_PH_3)*100","v":0}]
[]
[null,null,null,null,null,null,null,null,"Добавить запись"]
[null,null,null,null,null,null,"Добавить способ"]
[null,null,null,null,null,"Добавить поставщика"]
[null,null,null,null,"*","Раскрывается не позднее 30 дней со дня принятия соответствующего решения об установлении тарифа(надбавки) на очередной период регулирования."]

{"sheet":"ХВС показатели (2)(другое)","index":13,"n_rows":28,"n_cols":13,"rows_kept":28,"cut":false,"hidden":true,"merged":[[20,5,20,10],[21,5,21,10],[22,4,25,4],[22,5,25,5],[23,6,24,6],[23,7,24,7],[15,4,18,4],[15,5,18,5],[16,6,17,6],[16,7,17,7],[5,3,5,5],[7,3,7,13],[13,5,13,10],[14,5,14,10],[6,4,6,12]]}
[]
[]
[]
[]
[]
[]
[null,null,null,null,"Информация об объемах товаров и услуг, их стоимости и способах приобретения (Другое)"]
[]
[]
[]
[]
[null,null,null,null,"№ п/п","Наименование поставщика","Способ приобретения","Реквизиты договора","Наименование товара/услуги","Объем приобретенных товаров, услуг","Единица измерения объема","Стоимость, тыс.руб.","Доля расходов, % (от суммы расходов по указанной статье)"]
[null,null,null,null,1,2,3,4,5,6,7,8,9]
[null,null,null,null,1,"Расходы на ремонт (текущий и капитальный) основных производственных средств итого. Из них:",null,null,null,null,null,{"$f":"costs_OPS_4","v":0}]
[null,null,null,null,"1.1","Товары и услуги, приобретенные у организаций, сумма оплаты услуг которых превышает 20% суммы расходов по статье"]
[null,null,null,null,"1.1.1",null,"Итого по поставщику",null,null,null,null,{"$f":"SUM(L17:L19)","v":0},{"$f":"nerr(L16/costs_OPS_4)*100","v":0}]
[]
[null,null,null,null,null,null,null,null,"Добавить запись"]
[null,null,null,null,null,null,"Добавить способ"]
[null,null,null,null,null,"Добавить поставщика"]
[null,null,null,null,2,"Расходы на услуги производственного характера, выполняемые по договорам с организациями на проведение регламентных работ в рамках технологического процесса. Из них:",null,null,null,null,null,{"$f":"costs_PH_4","v":0}]
[null,null,null,null,"2.1","Товары и услуги, приобретенные у организаций, сумма оплаты услуг которых превышает 20% суммы расходов по статье"]
[null,null,null,null,"2.1.1",null,"Итого по поставщику",null,null,null,null,{"$f":"SUM(L24:L26)","v":0},{"$f":"nerr(L23/costs_PH_4)*100","v":0}]
[]
[null,null,null,null,null,null,null,null,"Добавить запись"]
[null,null,null,null,null,null,"Добавить способ"]
[null,null,null,null,null,"Добавить поставщика"]
[null,null,null,null,"*","Раскрывается не позднее 30 дней со дня принятия соответствующего решения об установлении тарифа(надбавки) на очередной период регулирования."]

{"sheet":"Ссылки на публикации","index":14,"n_rows":56,"n_cols":12,"rows_kept":56,"cut":false,"hidden":false,"merged":[[51,6,51,11],[52,6,52,11],[53,6,53,11],[5,3,5,5],[6,3,6,12],[7,3,7,12],[10,4,10,10],[50,6,50,11]]}
[]
[]
[]
[]
[]
[]
[null,null,null,{"$f":"\"Ссылки на публикации \"&IF(strPublication=\"На официальном сайте организации\",\"на официальном сайте организации\",\"в других источниках\")","v":"Ссылки на публикации в других источниках"}]
[]
[]
[]
[null,null,null,null,{"$f":"\"Указание на официальное печатное издание и (или) адрес сайта\"&IF(strPublication=\"На официальном сайте организации\",\" организации \",\" \")&\"в сети Интернет, которые используются для размещения раскрываемой информации *\"","v":"Указание на официальное печатное издание и (или) адрес сайта в сети Интернет, которые используются для размещения раскрываемой информации *"}]
[null,null,null,null,null,null,null,"True"]
[null,null,null,null,"№ п/п","Содержание","Наименование источника","Комментарий для КРО о причинах, по которым информация не раскрывалась","Дата размещения информации","Номер печатного издания","Дата печатного издания",{"$f":"IF(strPublication=\"На официальном сайте организации\",\"Адрес страницы официального сайта организации в сети интернет, на которой размещена раскрываемая информация\",\"Адрес сайта в сети Интернет\")","v":"Адрес сайта в сети Интернет"}]
[null,null,null,null,1,{"$f":"E14+1","v":2},3,3,{"$f":"H14+1","v":4},{"$f":"I14+1","v":5},{"$f":"J14+1","v":6},{"$f":"K14+1","v":7}]
[]
[]
[]
[]
[null,null,null,null,"1.2","Информация об основных показателях финансово-хозяйственной деятельности регулируемых организаций, включая структуру основных производственных затрат (в части регулируемой деятельности)"]
["официальный сайт ПАО \"ОГК-2\"",null,null,null,"1.2.1",{"$f":"\"Сайт\"&IF(strPublication=\"На официальном сайте организации\",\" организации \",\" \")&\"в сети Интернет\"","v":"Сайт в сети Интернет"},"официальный сайт ПАО \"ОГК-2\"",null,"28.12.2017","x","x","http://www.ogk2.ru/rus/si/infodisclosure/disclosureinstand/1140/Ryazanskaya/"]
["\"Пронская газета\" (Общественно-политическая газета Пронского района Рязанской области издается с марта 1931 года)",null,null,null,"1.2.2","Печатное издание","\"Пронская газета\" (Общественно-политическая газета Пронского района Рязанской области издается с марта 1931 года)",null,"12.12.2017","№49","12.12.2017","x"]
[null,null,null,null,"1.2.3","Электронная версия печатного издания"]
[null,null,null,null,"1.3","Информация о расходах на капитальный и текущий ремонт, услуги производственного характера"]
["официальный сайт ПАО \"ОГК-2\"",null,null,null,"1.3.1",{"$f":"\"Сайт\"&IF(strPublication=\"На официальном сайте организации\",\" организации \",\" \")&\"в сети Интернет\"","v":"Сайт в сети Интернет"},"официальный сайт ПАО \"ОГК-2\"",null,"28.12.2017","x","x","http://www.ogk2.ru/rus/si/infodisclosure/disclosureinstand/1140/Ryazanskaya/"]
["\"Пронская газета\" (Общественно-политическая газета Пронского района Рязанской области издается с марта 1931 года)",null,null,null,"1.3.2","Печатное издание","\"Пронская газета\" (Общественно-политическая газета Пронского района Рязанской области издается с марта 1931 года)",null,"12.12.2017","№49","12.12.2017","x"]
[null,null,null,null,"1.3.3","Электронная версия печатного издания"]
[null,null,null,null,"1.4",{"$f":"\"Условия публичных договоров  поставок регулируемых товаров, оказания регулируемых услуг, в том числе договоров на подключение к системе \"&TSphere_full","v":"Условия публичных договоров  поставок регулируемых товаров, оказания регулируемых услуг, в том числе договоров на подключение к системе холодного водоснабжения"}]
["официальный сайт ПАО \"ОГК-2\"",null,null,null,"1.4.1",{"$f":"\"Сайт\"&IF(strPublication=\"На официальном сайте организации\",\" организации \",\" \")&\"в сети Интернет\"","v":"Сайт в сети Интернет"},"официальный сайт ПАО \"ОГК-2\"",null,"28.12.2017","x","x","http://www.ogk2.ru/rus/si/infodisclosure/disclosureinstand/1140/Ryazanskaya/"]
["\"Пронская газета\" (Общественно-политическая газета Пронского района Рязанской области издается с марта 1931 года)",null,null,null,"1.4.2","Печатное издание","\"Пронская газета\" (Общественно-политическая газета Пронского района Рязанской области издается с марта 1931 года)",null,"12.12.2017","№49","12.12.2017","x"]
[null,null,null,null,"1.4.3","Электронная версия печатного издания"]
[null,null,null,null,"1.5",{"$f":"\"Форма заявки на подключение к системе \"&TSphere_full","v":"Форма заявки на подключение к системе холодного водоснабжения"}]
["официальный сайт ПАО \"ОГК-2\"",null,null,null,"1.5.1",{"$f":"\"Сайт\"&IF(strPublication=\"На официальном сайте организации\",\" организации \",\" \")&\"в сети Интернет\"","v":"Сайт в сети Интернет"},"официальный сайт ПАО \"ОГК-2\"",null,"28.12.2017","x","x","http://www.ogk2.ru/rus/si/infodisclosure/disclosureinstand/1140/Ryazanskaya/"]
["\"Пронская газета\" (Общественно-политическая газета Пронского района Рязанской области издается с марта 1931 года)",null,null,null,"1.5.2","Печатное издание","\"Пронская газета\" (Общественно-политическая газета Пронского района Рязанской области издается с марта 1931 года)",null,"12.12.2017","№49","12.12.2017","x"]
[null,null,null,null,"1.5.3","Электронная версия печатного издания"]
[null,null,null,null,"1.6",{"$f":"\"Перечень и формы документов, представляемых одновременно с заявкой на подключение к системе \"&TSphere_full","v":"Перечень и формы документов, представляемых одновременно с заявкой на подключение к системе холодного водоснабжения"}]
["официальный сайт ПАО \"ОГК-2\"",null,null,null,"1.6.1",{"$f":"\"Сайт\"&IF(strPublication=\"На официальном сайте организации\",\" организации \",\" \")&\"в сети Интернет\"","v":"Сайт в сети Интернет"},"официальный сайт ПАО \"ОГК-2\"",null,"28.12.2017","x","x","http://www.ogk2.ru/rus/si/infodisclosure/disclosureinstand/1140/Ryazanskaya/"]
["\"Пронская газета\" (Общественно-политическая газета Пронского района Рязанской области издается с марта 1931 года)",null,null,null,"1.6.2","Печатное издание","\"Пронская газета\" (Общественно-политическая газета Пронского района Рязанской области издается с марта 1931 года)",null,"12.12.2017","№49","12.12.2017","x"]
[null,null,null,null,"1.6.3","Электронная версия печатного издания"]
[null,null,null,null,"1.7","Описание (со ссылкой на нормативные акты) порядка действий  заявителя  и регулируемой организации при  подаче, приеме, обработке заявки на подключение к системе"]
[null,null,null,null,null,{"$f":"TSphere_full&\", принятии решения и уведомлении о принятом решении\"","v":"холодного водоснабжения, принятии решения и уведомлении о принятом решении"}]
["официальный сайт ПАО \"ОГК-2\"",null,null,null,"1.7.1",{"$f":"\"Сайт\"&IF(strPublication=\"На официальном сайте организации\",\" организации \",\" \")&\"в сети Интернет\"","v":"Сайт в сети Интернет"},"официальный сайт ПАО \"ОГК-2\"",null,"28.12.2017","x","x","http://www.ogk2.ru/rus/si/infodisclosure/disclosureinstand/1140/Ryazanskaya/"]
["\"Пронская газета\" (Общественно-политическая газета Пронского района Рязанской области издается с марта 1931 года)",null,null,null,"1.7.2","Печатное издание","\"Пронская газета\" (Общественно-политическая газета Пронского района Рязанской области издается с марта 1931 года)",null,"12.12.2017","№49","12.12.2017","x"]
[null,null,null,null,"1.7.3","Электронная версия печатного издания"]
[null,null,null,null,"1.8",{"$f":"\"Наименование и контакты службы, ответственной за прием и обработку заявок на подключение к системе \"&TSphere_full","v":"Наименование и контакты службы, ответственной за прием и обработку заявок на подключение к системе холодного водоснабжения"}]
["официальный сайт ПАО \"ОГК-2\"",null,null,null,"1.8.1",{"$f":"\"Сайт\"&IF(strPublication=\"На официальном сайте организации\",\" организации \",\" \")&\"в сети Интернет\"","v":"Сайт в сети Интернет"},"официальный сайт ПАО \"ОГК-2\"",null,"28.12.2017","x","x","http://www.ogk2.ru/rus/si/infodisclosure/disclosureinstand/1140/Ryazanskaya/"]
["\"Пронская газета\" (Общественно-политическая газета Пронского района Рязанской области издается с марта 1931 года)",null,null,null,"1.8.2","Печатное издание","\"Пронская газета\" (Общественно-политическая газета Пронского района Рязанской области издается с марта 1931 года)",null,"12.12.2017","№49","12.12.2017","x"]
[null,null,null,null,"1.8.3","Электронная версия печатного издания"]
[null,null,null,null,"1.8"]
[null,null,null,null,null,"Добавить запись"]
[null,null,null,null,"2",{"$f":"\"Справочно: Контакты службы, ответственной за прием и обработку заявок на подключение к системе  \"&TSphere_full","v":"Справочно: Контакты службы, ответственной за прием и обработку заявок на подключение к системе  холодного водоснабжения"}]
[null,null,null,null,"2.1","Адрес"]
[null,null,null,null,"2.2","(код) Номер телефона"]
[null,null,null,null,"2.3","E-mail"]
[null,null,null,null,"2.4","Сайт в сети Интернет"]
[null,null,null,null,"*","Источники публикации сообщаются в течение 5 рабочих дней со дня размещения информации на сайте в сети Интернет."]
[null,null,null,null,null,"Информация раскрывается не позднее 30 дней со дня принятия соответствующего решения об установлении тарифа(надбавки) на очередной период регулирования."]

{"sheet":"Комментарии","index":15,"n_rows":13,"n_cols":6,"rows_kept":13,"cut":false,"hidden":false,"merged":[[6,3,6,5],[7,3,7,5]]}
[]
[]
[]
[]
[]
[]
[null,null,null,"КОММЕНТАРИИ"]
[]
[]
[null,null,null,null,"№ п/п","Комментарий"]
[null,null,null,null,1,{"$f":"E11+1","v":2}]
[null,null,null,null,1]
[null,null,null,null,null,"Добавить комментарий"]

{"sheet":"Проверка","index":16,"n_rows":10,"n_cols":8,"rows_kept":10,"cut":false,"hidden":false,"merged":[[7,4,7,7]]}
[]
[]
[]
[]
[]
[]
[]
[null,null,null,null,"Результаты проверки"]
[]
[null,null,null,null,"Ссылка 1","Ссылка 2","Причина","Статус"]

{"sheet":"TEHSHEET","index":17,"n_rows":85,"n_cols":96,"rows_kept":85,"cut":false,"hidden":true,"merged":[[0,17,0,18]]}
["Логика","Кварталы","Года","Единица измерения","Месяц-текст","Месяц-число","Номер СКИ\n/SKI_number/","День-число","Регионы","Вид деятельности","Источники финансирования","Единица измерения","Вид тарифа на передачу тепловой энергии /kind_of_tariff_unit/","НДС /kind_of_NDS/","цель инвестиционной программы /objective_of_IPR/","цель инвестиционной программы /kind_of_purchase_method/","наименование источника\n/kind_of_name_source/","Виды топлива\n/kind_of_fuels/",null,"регионы-исключения\n/region_exception/",null,"версия шаблона\n (DocProp_Version)","5.0.2",null,null,null,null,null,null,null,null,null,null,null,null,null,null,null,null,null,null,null,null,null,null,null,null,null,null,null,null,null,null,null,null,null,null,null,null,null,null,null,null,null,null,null,null,null,null,null,null,null,null,null,null,null,null,null,null,null,null,null,null,null,null,null,null,null,null,null,null,null,null,null,null,"5.86"]
["да","I квартал",2006,"тыс.руб.","январь","01","1","01","Алтайский край","Оказание услуг в сфере водоотведения и очистки сточных вод","кредиты банков","тыс.куб м/сутки","руб./Гкал/ч/мес","общий","автоматизация (с уменьшением штата)","торги/аукционы","наименование источника","газ природный по регулируемой цене","тыс. м3","Краснодарский край",null,"код шаблона\n(DocProp_TemplateCode)","JKH.OPEN.INFO.TARIFF.HVS"]
["нет","II квартал",2007,"млн.руб.","февраль","02","2","02","Амурская область","Оказание услуг по перекачке","кредиты иностранных банков","Гкал/час","руб./Гкал","общий с учетом освобождения от уплаты НДС","уменьшение удельных затрат (повышение КПД)","прямые договора без торгов","не раскрывалась","газ природный по нерегулируемой цене","тыс. м3","Кировская область",null,"сфера\n(TSphere)","ХВС"]
[null,"III квартал",2008,null,"март","03","3","03","Архангельская область","Оказание услуг в сфере водоснабжения, водоотведения и очистки сточных вод","заемные ср-ва др. организаций","куб.м/час",null,"специальный (упрощенная система налогообложения, система налогообложения для сельскохозяйственных товаропроизводителей)","уменьшение издержек на производство","прочее",null,"газ сжиженный","кг","Республика Башкортостан",null,"сфера(латиница)\n(TSphere_trans)","HVS"]
[null,"IV квартал",2009,null,"апрель","04","4","04","Астраханская область",null,"федеральный бюджет",null,null,null,"снижение аварийности",null,null,"газовый конденсат","тонны","г.Санкт-Петербург",null,"сфера расширено\n(TSphere_full)","холодного водоснабжения"]
[null,null,2010,null,"май","05","5","05","Белгородская область","Вид деятельности, на которую установлен тариф /kind_of_activity_WARM/","бюджет субъекта РФ",null,null,null,"прочее",null,null,"гшз","тонны","Чувашская республика",null,"признак общего шаблона\n(flag_main_template)","False"]
[null,null,2011,null,"июнь","06","6","06","Брянская область","Комбинированная выработка","бюджет муниципального образования",null,null,null,null,null,null,"мазут","тонны","Пермский край"]
[null,null,2012,null,"июль","07","7","07","Владимирская область","Некомбинированная выработка","ср-ва внебюджетных фондов",null,null,null,null,null,null,"нефть","тонны","Республика Татарстан"]
[null,null,2013,null,"август","08","8","08","Волгоградская область","Нет производства т/э","прибыль, направляемая на инвестиции",null,null,null,null,null,null,"дизельное топливо","тонны","Иркутская область"]
[null,null,2014,null,"сентябрь","09","9","09","Вологодская область","Смешанное производство","амортизация",null,null,null,null,null,null,"уголь бурый","тонны","Алтайский край"]
[null,null,2015,null,"октябрь",10,"10",10,"Воронежская область","Вид деятельности, на которую установлен тариф /kind_of_activity_HVS/","инвестиционная надбавка к тарифу",null,null,null,null,null,null,"уголь каменный","тонны"]
[null,null,null,null,"ноябрь",11,"11",11,"г.Байконур","Водоснабжение (подъем, очистка, транспортировка)","плата за подключение",null,null,null,null,null,null,"торф","тонны"]
[null,null,null,null,"декабрь",12,"12",12,"г. Москва","Подъем","прочие средства",null,null,null,null,null,null,"дрова","м3"]
[null,null,null,null,null,null,"13",13,"г.Санкт-Петербург","Транспортировка",null,null,null,null,null,null,null,"опил","м3"]
[null,null,null,null,null,null,"14",14,"Еврейская автономная область","Вид деятельности, на которую установлен тариф /kind_of_activity_VO/",null,null,null,null,null,null,null,"отходы березовые","м3"]
[null,null,null,null,null,null,"15",15,"Забайкальский край","Транспортировка и очистка сточных вод","XML_ORG_LIST_TAG_NAMES",null,null,null,null,null,null,"отходы осиновые","м3"]
[null,null,null,null,null,null,"16",16,"Ивановская область","Транспортировка сточных вод","NSRF",null,null,null,null,null,null,"печное топливо","тонны"]
[null,null,null,null,null,null,"17",17,"Иркутская область","Очистка сточных вод","MR_NAME",null,null,null,null,null,null,"пилеты","тонны"]
[null,null,null,null,null,null,"18",18,"Кабардино-Балкарская республика",null,"OKTMO_MR_NAME",null,null,null,null,null,null,"смола","тонны"]
[null,null,null,null,null,null,"19",19,"Калининградская область",null,"MO_NAME",null,null,null,null,null,null,"щепа","м3"]
[null,null,null,null,null,null,"20",20,"Калужская область",null,"OKTMO_NAME",null,null,null,null,null,null,"горючий сланец","тонны"]
[null,null,null,null,null,null,null,21,"Камчатский край",null,"ORG_NAME",null,null,null,null,null,null,"керосин","тонны"]
[null,null,null,null,null,null,null,22,"Карачаево-Черкесская республика",null,"INN_NAME",null,null,null,null,null,null,"кислородно-водородная смесь","тыс. м3"]
[null,null,null,null,null,null,null,23,"Кемеровская область",null,"KPP_NAME",null,null,null,null,null,null,"электроэнергия (НН)","тыс.кВт ч"]
[null,null,null,null,null,null,null,24,"Кировская область",null,"VDET_NAME",null,null,null,null,null,null,"электроэнергия (СН1)","тыс.кВт ч"]
[null,null,null,null,null,null,null,25,"Костромская область",null,null,null,null,null,null,null,null,"электроэнергия (СН2)","тыс.кВт ч"]
[null,null,null,null,null,null,null,26,"Краснодарский край",null,"XML_MR_MO_OKTMO_LIST_TAG_NAMES",null,null,null,null,null,null,"электроэнергия (ВН)","тыс.кВт ч"]
[null,null,null,null,null,null,null,27,"Красноярский край",null,"NSRF",null,null,null,null,null,null,"мощность","тыс.кВт"]
[null,null,null,null,null,null,null,28,"Курганская область",null,"MR_NAME",null,null,null,null,null,null,"прочее"]
[null,null,null,null,null,null,null,29,"Курская область",null,"OKTMO_MR_NAME"]
[null,null,null,null,null,null,null,30,"Ленинградская область",null,"MO_NAME"]
[null,null,null,null,null,null,null,31,"Липецкая область",null,"OKTMO_NAME"]
[null,null,null,null,null,null,null,null,"Магаданская область"]
[null,null,null,null,null,null,null,null,"Московская область"]
[null,null,null,null,null,null,null,null,"Мурманская область"]
[null,null,null,null,null,null,null,null,"Ненецкий автономный округ"]
[null,null,null,null,null,null,null,null,"Нижегородская область"]
[null,null,null,null,null,null,null,null,"Новгородская область"]
[null,null,null,null,null,null,null,null,"Новосибирская область"]
[null,null,null,null,null,null,null,null,"Омская область"]
[null,null,null,null,null,null,null,null,"Оренбургская область"]
[null,null,null,null,null,null,null,null,"Орловская область"]
[null,null,null,null,null,null,null,null,"Пензенская область"]
[null,null,null,null,null,null,null,null,"Пермский край"]
[null,null,null,null,null,null,null,null,"Приморский край"]
[null,null,null,null,null,null,null,null,"Псковская область"]
[null,null,null,null,null,null,null,null,"Республика Адыгея"]
[null,null,null,null,null,null,null,null,"Республика Алтай"]
[null,null,null,null,null,null,null,null,"Республика Башкортостан"]
[null,null,null,null,null,null,null,null,"Республика Бурятия"]
[null,null,null,null,null,null,null,null,"Республика Дагестан"]
[null,null,null,null,null,null,null,null,"Республика Ингушетия"]
[null,null,null,null,null,null,null,null,"Республика Калмыкия"]
[null,null,null,null,null,null,null,null,"Республика Карелия"]
[null,null,null,null,null,null,null,null,"Республика Коми"]
[null,null,null,null,null,null,null,null,"Республика Марий Эл"]
[null,null,null,null,null,null,null,null,"Республика Мордовия"]
[null,null,null,null,null,null,null,null,"Республика Саха (Якутия)"]
[null,null,null,null,null,null,null,null,"Республика Северная Осетия-Алания"]
[null,null,null,null,null,null,null,null,"Республика Татарстан"]
[null,null,null,null,null,null,null,null,"Республика Тыва"]
[null,null,null,null,null,null,null,null,"Республика Хакасия"]
[null,null,null,null,null,null,null,null,"Ростовская область"]
[null,null,null,null,null,null,null,null,"Рязанская область"]
[null,null,null,null,null,null,null,null,"Самарская область"]
[null,null,null,null,null,null,null,null,"Саратовская область"]
[null,null,null,null,null,null,null,null,"Сахалинская область"]
[null,null,null,null,null,null,null,null,"Свердловская область"]
[null,null,null,null,null,null,null,null,"Смоленская область"]
[null,null,null,null,null,null,null,null,"Ставропольский край"]
[null,null,null,null,null,null,null,null,"Тамбовская область"]
[null,null,null,null,null,null,null,null,"Тверская область"]
[null,null,null,null,null,null,null,null,"Томская область"]
[null,null,null,null,null,null,null,null,"Тульская область"]
[null,null,null,null,null,null,null,null,"Тюменская область"]
[null,null,null,null,null,null,null,null,"Удмуртская республика"]
[null,null,null,null,null,null,null,null,"Ульяновская область"]
[null,null,null,null,null,null,null,null,"Хабаровский край"]
[null,null,null,null,null,null,null,null,"Ханты-Мансийский автономный округ"]
[null,null,null,null,null,null,null,null,"Челябинская область"]
[null,null,null,null,null,null,null,null,"Чеченская республика"]
[null,null,null,null,null,null,null,null,"Чувашская республика"]
[null,null,null,null,null,null,null,null,"Чукотский автономный округ"]
[null,null,null,null,null,null,null,null,"Ямало-Ненецкий автономный округ"]
[null,null,null,null,null,null,null,null,"Ярославская область"]

{"sheet":"CheckCopy","index":18,"n_rows":10,"n_cols":8,"rows_kept":10,"cut":false,"hidden":true,"merged":[[7,4,7,7]]}
[]
[]
[]
[]
[]
[]
[]
[null,null,null,null,"Результаты проверки"]
[]
[null,null,null,null,"Ссылка 1","Ссылка 2","Описание причины","Обязательность выполнения"]

{"sheet":"AllSheetsInThisWorkbook","index":19,"n_rows":32,"n_cols":2,"rows_kept":32,"cut":false,"hidden":true,"merged":[]}
["Расчетные листы","Скрытые листы"]
["Инструкция","TEHSHEET"]
["Справочная информация","CheckCopy"]
["Титульный","AllSheetsInThisWorkbook"]
["ХВС инвестиции","et_union"]
["ХВС показатели(техническая)","modInfo"]
["ХВС показатели(питьевая)","REESTR_ORG"]
["ХВС показатели(подвозная)","modHyperlink"]
["ХВС показатели(другое)","modChange"]
["ХВС показатели (2)(техническая)","modTitleSheetHeaders"]
["ХВС показатели (2)(питьевая)","modServiceModule"]
["ХВС показатели (2)(подвозная)","modClassifierValidate"]
["ХВС показатели (2)(другое)","Паспорт"]
["Ссылки на публикации","REESTR_FILTERED"]
["Комментарии","REESTR_MO"]
["Проверка","modfrmReestr"]
[null,"modDblClick"]
[null,"modfrmDateChoose"]
[null,"modfrmSphereChoose"]
[null,"modReestrMO"]
[null,"modSheetMain01"]
[null,"modSheetMain03"]
[null,"modSheetMain04"]
[null,"modSheetMain06"]
[null,"modSheetMain07"]
[null,"modSheetMain08"]
[null,"modUpdTemplMain"]
[null,"modRegionSelectSub"]
[null,"modfrmCheckUpdates"]
[null,"modCommonProv"]
[null,"modProvGeneralProc"]
[null,"modThisWorkbook"]

{"sheet":"et_union","index":20,"n_rows":66,"n_cols":13,"rows_kept":66,"cut":false,"hidden":true,"merged":[[22,7,23,7],[29,4,32,4],[29,5,32,5],[30,6,31,6],[30,7,31,7],[7,4,11,4],[42,4,43,4],[21,4,24,4],[21,5,24,5],[22,6,23,6]]}
[]
["add_INDEX_range"]
[]
[null,null,null,null,null,null,"тыс.руб."]
[]
["add_INDEX_WARM_range"]
[]
[null,null,null,null,"3.2.1",null,"тыс.руб."]
[null,null,null,null,null,"Стоимость","тыс.руб."]
[null,null,null,null,null,"Объем"]
[null,null,null,null,null,"Стоимость 1й единицы объема с учетом доставки (транспортировки)","тыс.руб.",{"$f":"nerr(H8/H10)","v":0}]
[null,null,null,null,null,"Способ приобретения","x"]
[]
["add_INDEX_HVS_object_range"]
[]
[null,null,null,null,null,null,"%"]
[]
["add_INDEX_2_SUPPLIER_range_1"]
["add_INDEX_2_ACQUISITION_range_1"]
["add_INDEX_2_RECORD_range"]
[]
[null,null,null,null,"1.1.1",null,"Итого по поставщику",null,null,null,null,{"$f":"SUM(L23:L25)","v":0},{"$f":"nerr(L22/costs_OPS_4)*100","v":0}]
[]
[null,null,null,null,null,null,null,null,"Добавить запись"]
[null,null,null,null,null,null,"Добавить способ"]
[]
["add_INDEX_2_SUPPLIER_2_range_1"]
["add_INDEX_2_ACQUISITION_2_range_1"]
[]
[null,null,null,null,"2.1.1",null,"Итого по поставщику",null,null,null,null,{"$f":"SUM(L31:L33)","v":0},{"$f":"nerr(L30/costs_PH_4)*100","v":0}]
[]
[null,null,null,null,null,null,null,null,"Добавить запись"]
[null,null,null,null,null,null,"Добавить способ"]
[]
["add_HYPERLINK_range"]
[]
[]
[]
[]
["add_MR_range"]
["add_MO_range"]
[]
[]
[null,null,null,null,null,"Добавить МО"]
[]
[]
["edit_ipr_pub"]
[]
[null,null,null,null,"1.1","Информация об инвестиционных программах и отчетах об их реализации **"]
[null,null,null,null,"1.1.1",{"$f":"\"Сайт\"&IF(strPublication=\"На официальном сайте организации\",\" организации \",\" \")&\"в сети Интернет\"","v":"Сайт в сети Интернет"},null,null,null,"x","x"]
[null,null,null,null,"1.1.2","Печатное издание",null,null,null,null,null,"x"]
[]
[]
["edit_ipr_pub_SPb"]
[]
[null,null,null,null,"1.1","Информация об инвестиционных программах и отчетах об их реализации **"]
[null,null,null,null,"1.1.1",{"$f":"\"Сайт\"&IF(strPublication=\"На официальном сайте организации\",\" организации \",\" \")&\"в сети Интернет\"","v":"Сайт в сети Интернет"},null,null,null,"x","x"]
[null,null,null,null,"1.1.2","Печатное издание",null,null,null,null,null,"x"]
[null,null,null,null,"1.1.3","Электронная версия печатного издания"]
[]
["edit_ipr_pub_comm"]
["edit_ipr_pub_comm_SPb"]
[]
[null,null,null,null,"**","Информация подлежит публикованию в официальных печатных изданиях (со ссылкой на адрес сайта в сети Интернет)."]
[]
["add_COMMENTS_range"]

{"sheet":"modInfo","index":21,"n_rows":17,"n_cols":2,"rows_kept":17,"cut":false,"hidden":true,"merged":[]}
[null,"Титульный"]
[null,"В зависимости от выбранного значения в поле \"Публикация\" изменяется содержание и количество листов"]
[null,{"$f":"IF(TSphere = \"ТБО\", \"Перечислите все муниципальные районы, в которых организация осуществляет услуги по утилизации (захоронению) твердых бытовых отходов\", \"В случае, если тариф не дифференцируется по системам \"&IF(TSphere = \"ТС\",\"теплоснабжения\",\"коммунальной инфраструктуры\")&\", перечислите все муниципальные районы, в которых организация осуществляет услуги \" &TSphere_full)","v":"В случае, если тариф не дифференцируется по системам коммунальной инфраструктуры, перечислите все муниципальные районы, в которых организация осуществляет услуги холодного водоснабжения"}]
[null,{"$f":"IF(TSphere = \"ТБО\", \"Перечислите все муниципальные образования, в которых организация осуществляет услуги по утилизации (захоронению) твердых бытовых отходов\", \"В случае, если тариф не дифференцируется по системам \"&IF(TSphere = \"ТС\",\"теплоснабжения\",\"коммунальной инфраструктуры\")&\", перечислите все муниципальные образования, в которых организация осуществляет услуги \" &TSphere_full)","v":"В случае, если тариф не дифференцируется по системам коммунальной инфраструктуры, перечислите все муниципальные образования, в которых организация осуществляет услуги холодного водоснабжения"}]
[null,"Признак дифференциации тарифа"]
[null,{"$f":"\"В случае, если тариф не дифференцируется по системам \"&IF(TSphere = \"ТС\",\"теплоснабжения\",\"коммунальной инфраструктуры\")&\", укажите \"\"1\"\".\nВыберите значение из списка, указав очередной условный порядковый номер системы \"&IF(TSphere = \"ТС\",\"теплоснабжения\",\"коммунальной инфраструктуры\")","v":"В случае, если тариф не дифференцируется по системам коммунальной инфраструктуры, укажите \"1\".\nВыберите значение из списка, указав очередной условный порядковый номер системы коммунальной инфраструктуры"}]
[null,"Задайте период регулирования, выбрав начало и окончание очередного периода с помощью календаря /выполните двойной щелчок по соответствующей синей ячейке/.\nИнформация раскрывается регулируемой организацией не позднее 30 дней со дня сдачи годового бухгалтерского баланса в налоговые органы и должна соответствовать годовой бухгалтерской отчетности за отчетный год"]
[null,"Укажите является ли данное юридическое лицо подразделением(филиалом) другой организации"]
[null,"Выполните двойной щелчок по синей ячейке в соответствующей строке, чтобы ввести дату"]
[null,"Нажмите на кнопку \"Выбор организации\", чтобы выбрать организацию или обновить реестр"]
[null,"Нажмите на кнопку \"Обновить реестр МО\", чтобы обновить реестр МР/МО"]
[null,"Для выбора того или иного источника публикации выполните двойной щелчок по синей ячейке напротив соответствующего источника.\nВНИМАНИЕ! Если Вы снимаете галочку с пункта, то будут скрыты и очищены соответствующие строки на листе \"Ссылки на публикации\"!"]
[null,"В зависимости от выбранного значения в поле \"Вид товара\" изменяется содержание и количество листов"]
[null,"Показатели (2)"]
[null,"Указывается информация о поставке товаров и услуг, стоимость которых превышает 20% суммы поставки товаров и услуг по каждой из организаций"]
[null,"Ссылки на публикации"]
[null,"Вводите адрес сайта, не нарушая цвет ячейки /если копируете гиперссылку из браузера, то выполните двойной щелчок по ячейке и только после этого можете вставить скопированный элемент/"]

{"sheet":"REESTR_ORG","index":22,"n_rows":1,"n_cols":8,"rows_kept":1,"cut":false,"hidden":true,"merged":[]}
["№","МР","МО","МО ОКТМО","ОРГАНИЗАЦИЯ","ИНН","КПП","ВИД ДЕЯТЕЛЬНОСТИ"]

{"sheet":"modHyperlink","index":23,"n_rows":0,"n_cols":0,"rows_kept":0,"cut":false,"hidden":true,"merged":[]}

{"sheet":"modChange","index":24,"n_rows":0,"n_cols":0,"rows_kept":0,"cut":false,"hidden":true,"merged":[]}

{"sheet":"modTitleSheetHeaders","index":25,"n_rows":0,"n_cols":0,"rows_kept":0,"cut":false,"hidden":true,"merged":[]}

{"sheet":"modServiceModule","index":26,"n_rows":0,"n_cols":0,"rows_kept":0,"cut":false,"hidden":true,"merged":[]}

{"sheet":"modClassifierValidate","index":27,"n_rows":0,"n_cols":0,"rows_kept":0,"cut":false,"hidden":true,"merged":[]}

{"sheet":"Паспорт","index":28,"n_rows":71,"n_cols":57,"rows_kept":71,"cut":false,"hidden":true,"merged":[[64,3,64,10],[61,3,61,10],[63,5,63,10],[70,5,70,10],[69,5,69,10],[68,5,68,10],[67,5,67,10],[66,3,66,10],[33,3,33,10],[54,3,54,10],[62,5,62,10],[57,5,57,10],[58,5,58,10],[56,3,56,10],[36,8,36,10],[37,8,37,10],[59,5,59,10],[35,3,35,10],[46,8,46,10],[47,8,47,10],[41,8,41,10],[38,8,38,10],[39,8,39,10],[40,8,40,10],[30,5,30,10],[31,7,31,10],[32,7,32,10],[22,5,22,10],[23,5,23,10],[29,3,29,10],[25,3,25,10],[26,5,26,10],[27,3,27,10],[14,6,14,9],[21,5,21,10],[17,3,17,10],[15,5,15,10],[18,5,18,10],[19,5,19,10],[20,5,20,10],[3,3,3,10],[12,5,12,10],[13,5,13,10],[6,5,6,10],[7,5,7,10],[5,3,5,10],[8,5,8,10],[9,5,9,10],[10,5,10,10],[11,5,11,10],[44,8,44,10],[45,8,45,10],[42,8,42,10],[43,8,43,10],[48,8,48,10],[49,8,49,10],[52,8,52,10],[53,8,53,10],[50,8,50,10],[51,8,51,10]]}
[null,null,null,null,null,null,null,null,null,null,null,null,null,null,null,null,null,null,null,null,null,null,null,null,null,null,null,null,null,null,null,null,null,null,null,null,null,null,null,null,null,null,null,null,null,null,null,"Код диапазона:","Название диапазона:","Сфера регулирования:","Подсфера:","Тип информации в шаблоне:","Состояние шаблона:","Периодичность:","\"Геотип\" шаблона:","Тип шаблона:","Заказчик:"]
[null,null,null,null,null,null,null,null,null,null,null,null,null,null,null,null,null,null,null,null,null,null,null,null,null,null,null,null,null,null,null,null,null,null,null,null,null,null,null,null,null,null,null,null,null,null,null,"ps_sr","Сфера регулирования:","Не определено","Не определено","Не определено","Не определено","Не определено","Не определено","Не определено","Не определено"]
[null,null,null,null,null,null,null,null,null,null,null,null,null,null,null,null,null,null,null,null,null,null,null,null,null,null,null,null,null,null,null,null,null,null,null,null,null,null,null,null,null,null,null,null,null,null,null,"ps_ti","Тип информации в шаблоне:","NETS","водоотведение - очистка","Статистический","Проект","Единовременный","Региональный шаблон","Атомарный","РЭК"]
[null,null,null,"Паспорт к шаблону",null,null,null,null,null,null,null,null,null,null,null,null,null,null,null,null,null,null,null,null,null,null,null,null,null,null,null,null,null,null,null,null,null,null,null,null,null,null,null,null,null,null,null,"ps_ssh","Состояние шаблона:","Аэропорты","водоотведение - передача","Расчетный","Утвержден","Ежемесячный","Муниципальный шаблон","Сводный","ФСТ"]
[null,null,null,null,null,null,null,null,null,null,null,null,null,null,null,null,null,null,null,null,null,null,null,null,null,null,null,null,null,null,null,null,null,null,null,null,null,null,null,null,null,null,null,null,null,null,null,"ps_p","Периодичность:","Газ","водоотведение - прием","Обосновывающие материалы",null,"Ежеквартальный","Шаблон от организации",null,"Экспертная организация"]
[null,null,null,"1. Общие сведения",null,null,null,null,null,null,null,null,null,null,null,null,null,null,null,null,null,null,null,null,null,null,null,null,null,null,null,null,null,null,null,null,null,null,null,null,null,null,null,null,null,null,null,"ps_geo","\"Геотип\" шаблона:","Железные дороги","водоснабжение - очистка",null,null,"Ежегодный"]
[null,null,null,"1.1","Код",null,null,null,null,null,null,null,null,null,null,null,null,null,null,null,null,null,null,null,null,null,null,null,null,null,null,null,null,null,null,null,null,null,null,null,null,null,null,null,null,null,null,"ps_tsh","Тип шаблона:","ЖКХ","водоснабжение - передача"]
[null,null,null,"1.2","Краткое наименование",null,null,null,null,null,null,null,null,null,null,null,null,null,null,null,null,null,null,null,null,null,null,null,null,null,null,null,null,null,null,null,null,null,null,null,null,null,null,null,null,null,null,"ps_psr","Подсфера:","Медицина","водоснабжение - подъем"]
[null,null,null,"1.3","Полное наименование",null,null,null,null,null,null,null,null,null,null,null,null,null,null,null,null,null,null,null,null,null,null,null,null,null,null,null,null,null,null,null,null,null,null,null,null,null,null,null,null,null,null,"ps_z","Заказчик:","Порты","выработка ТС  "]
[null,null,null,"1.4","Сфера регулирования ",null,null,null,null,null,null,null,null,null,null,null,null,null,null,null,null,null,null,null,null,null,null,null,null,null,null,null,null,null,null,null,null,null,null,null,null,null,null,null,null,null,null,null,null,"Связь","выработка ТС в режиме комбинированной выработки"]
[null,null,null,"1.5","Подсфера",null,null,null,null,null,null,null,null,null,null,null,null,null,null,null,null,null,null,null,null,null,null,null,null,null,null,null,null,null,null,null,null,null,null,null,null,null,null,null,null,null,null,null,null,"Транспорт","выработка электрической энергии"]
[null,null,null,"1.6","Состояние шаблона (Утвержден/Проект)",null,null,null,null,null,null,null,null,null,null,null,null,null,null,null,null,null,null,null,null,null,null,null,null,null,null,null,null,null,null,null,null,null,null,null,null,null,null,null,null,null,null,null,null,"Электроэнергетика","выработка+передача+сбыт ТС"]
[null,null,null,"1.7","Заказчик",null,null,null,null,null,null,null,null,null,null,null,null,null,null,null,null,null,null,null,null,null,null,null,null,null,null,null,null,null,null,null,null,null,null,null,null,null,null,null,null,null,null,null,null,null,"передача ТС"]
[null,null,null,"1.8","Отчитывается",null,null,null,null,null,null,null,null,null,null,null,null,null,null,null,null,null,null,null,null,null,null,null,null,null,null,null,null,null,null,null,null,null,null,null,null,null,null,null,null,null,null,null,null,null,"передача ЭЭ"]
[null,null,null,"1.9","Тип шаблона",null,"Если шаблон сводный, необходимо указать код атомарного шаблона для него:",null,null,null,null,null,null,null,null,null,null,null,null,null,null,null,null,null,null,null,null,null,null,null,null,null,null,null,null,null,null,null,null,null,null,null,null,null,null,null,null,null,null,null,"сбыт ТС"]
[null,null,null,"1.10","Текущая версия",null,null,null,null,null,null,null,null,null,null,null,null,null,null,null,null,null,null,null,null,null,null,null,null,null,null,null,null,null,null,null,null,null,null,null,null,null,null,null,null,null,null,null,null,null,"сбыт ЭЭ"]
[null,null,null,null,null,null,null,null,null,null,null,null,null,null,null,null,null,null,null,null,null,null,null,null,null,null,null,null,null,null,null,null,null,null,null,null,null,null,null,null,null,null,null,null,null,null,null,null,null,null,"ТБО"]
[null,null,null,"2. Организационные"]
[null,null,null,"2.1","Тип информации в шаблоне "]
[null,null,null,"2.2","Ответственный регулятор (от заказчика)"]
[null,null,null,"2.3","Ответственный специалист (от СМА)"]
[null,null,null,"2.4","Ответственный программист (от СМА)"]
[null,null,null,"2.5","Ответственные за сбор данных (от СМА)"]
[null,null,null,"2.6","Ответственные за сбор данных (от заказчика)"]
[]
[null,null,null,"3. Законодательство (методики, приказы, постановления ...)"]
[null,null,"first","3.1","Документ1"]
[null,null,"end","Добавить документ"]
[]
[null,null,null,"4. Периодичность"]
[null,null,null,"4.1","Периодичность"]
[null,null,null,null,"Мониторинги(прошедшие и плановые)","Дата начала","Дата окончания","Согласно (приказ, постановление, письмо)"]
[null,null,"first","4.2.1","Мониторинг1"]
[null,null,"end","Добавить мониторинг"]
[]
[null,null,null,"5. Состав шаблона"]
[null,null,null,null,"Лист","Последняя дата изменений эскиза","Состояние листа","Наименование витрины для листа","Комментарии"]
[null,null,"first","5.1.1"]
[null,null,"Удалить","5.1.2"]
[null,null,"Удалить","5.1.3"]
[null,null,"Удалить","5.1.4"]
[null,null,"Удалить","5.1.5"]
[null,null,"Удалить","5.1.6"]
[null,null,"Удалить","5.1.7"]
[null,null,"Удалить","5.1.8"]
[null,null,"Удалить","5.1.9"]
[null,null,"Удалить","5.1.10"]
[null,null,"Удалить","5.1.11"]
[null,null,"Удалить","5.1.12"]
[null,null,"Удалить","5.1.13"]
[null,null,"Удалить","5.1.14"]
[null,null,"Удалить","5.1.15"]
[null,null,"Удалить","5.1.16"]
[null,null,"Удалить","5.1.17"]
[null,null,"end","Добавить лист"]
[]
[null,null,null,"6. Сроки и даты"]
[null,null,null,"6.1.1","Даты получения последних эскизов, от экспертов"]
[null,null,null,"6.1.2","Даты отправки шаблона на проверку"]
[null,null,null,"6.1.3","Предполагаемый срок сдачи шаблона в эксплуатацию"]
[]
[null,null,null,"7. Версии"]
[null,null,null,null,"Версия","Отличия от предыдущей"]
[null,null,"first","7.1"]
[null,null,"end","Добавить версию"]
[]
[null,null,null,"8. Дополнительно"]
[null,null,null,"8.1","Аналогичные(\"похожие\") шаблоны"]
[null,null,null,"8.2","Особенности шаблона"]
[null,null,null,"8.3","Модуль на основе данного шаблона"]
[null,null,null,"8.4","Процедуры загрузки данных в витрины"]

{"sheet":"REESTR_FILTERED","index":29,"n_rows":1,"n_cols":8,"rows_kept":1,"cut":false,"hidden":true,"merged":[]}
["№","МР","МО","МО ОКТМО","ОРГАНИЗАЦИЯ","ИНН","КПП","ВИД ДЕЯТЕЛЬНОСТИ"]

{"sheet":"REESTR_MO","index":30,"n_rows":308,"n_cols":5,"rows_kept":308,"cut":false,"hidden":true,"merged":[]}
["МР","МО","МО_ОКТМО","МР","ИМЯ ДИАПАЗОНА"]
["Александро-Невский муниципальный район","Александро-Невский муниципальный район","61620000","Александро-Невский муниципальный район","MO_LIST_2"]
["Александро-Невский муниципальный район","Александро-Невское","61620151","Город Касимов","MO_LIST_3"]
["Александро-Невский муниципальный район","Благовское","61620405","Город Рязань","MO_LIST_4"]
["Александро-Невский муниципальный район","Борисовское","61620410","Город Сасово","MO_LIST_5"]
["Александро-Невский муниципальный район","Бурминское","61620420","Город Скопин","MO_LIST_6"]
["Александро-Невский муниципальный район","Каширинское","61620450","Ермишинский муниципальный район","MO_LIST_7"]
["Александро-Невский муниципальный район","Ленинское","61620435","Захаровский муниципальный район","MO_LIST_8"]
["Александро-Невский муниципальный район","Нижнеякимецкое","61620445","Кадомский муниципальный район","MO_LIST_9"]
["Александро-Невский муниципальный район","Просеченское","61620460","Касимовский муниципальный район","MO_LIST_10"]
["Город Касимов","Город Касимов","61705000","Клепиковский муниципальный район","MO_LIST_11"]
["Город Рязань","Город Рязань","61701000","Кораблинский муниципальный район","MO_LIST_12"]
["Город Сасово","Город Сасово","61710000","Милославский муниципальный район","MO_LIST_13"]
["Город Скопин","Город Скопин","61715000","Михайловский муниципальный район","MO_LIST_14"]
["Ермишинский муниципальный район","Азеевское","61602405","Пителинский муниципальный район","MO_LIST_15"]
["Ермишинский муниципальный район","Ермишинский муниципальный район","61602000","Пронский муниципальный район","MO_LIST_16"]
["Ермишинский муниципальный район","Ермишинское","61602151","Путятинский муниципальный район","MO_LIST_17"]
["Ермишинский муниципальный район","Мердушинское","61602425","Рыбновский муниципальный район","MO_LIST_18"]
["Ермишинский муниципальный район","Надежкинское","61602430","Ряжский муниципальный район","MO_LIST_19"]
["Ермишинский муниципальный район","Нарминское","61602435","Рязанский муниципальный район","MO_LIST_20"]
["Ермишинский муниципальный район","Савватемское","61602440","Сапожковский муниципальный район","MO_LIST_21"]
["Захаровский муниципальный район","Безлыченское","61604412","Сараевский муниципальный район","MO_LIST_22"]
["Захаровский муниципальный район","Большекоровинское","61604415","Сасовский муниципальный район","MO_LIST_23"]
["Захаровский муниципальный район","Добро-Пчельское","61604430","Скопинский муниципальный район","MO_LIST_24"]
["Захаровский муниципальный район","Елинское","61604432","Спасский муниципальный район","MO_LIST_25"]
["Захаровский муниципальный район","Захаровский муниципальный район","61604000","Старожиловский муниципальный район","MO_LIST_26"]
["Захаровский муниципальный район","Захаровское","61604440","Ухоловский муниципальный район","MO_LIST_27"]
["Захаровский муниципальный район","Плахинское","61604465","Чучковский муниципальный район","MO_LIST_28"]
["Захаровский муниципальный район","Сменовское","61604425","Шацкий муниципальный район","MO_LIST_29"]
["Кадомский муниципальный район","Восходское","61606405","Шиловский муниципальный район","MO_LIST_30"]
["Кадомский муниципальный район","Енкаевское","61606410"]
["Кадомский муниципальный район","Кадомский муниципальный район","61606000"]
["Кадомский муниципальный район","Кадомское","61606151"]
["Кадомский муниципальный район","Котелинское","61606420"]
["Кадомский муниципальный район","Кущапинское","61606430"]
["Касимовский муниципальный район","Ардабьевское","61608403"]
["Касимовский муниципальный район","Ахматовское","61608406"]
["Касимовский муниципальный район","Балушево-Починковское","61608409"]
["Касимовский муниципальный район","Булгаковское","61608439"]
["Касимовский муниципальный район","Гиблицкое","61608418"]
["Касимовский муниципальный район","Гусевское","61608154"]
["Касимовский муниципальный район","Дмитриевское","61608421"]
["Касимовский муниципальный район","Елатомское","61608156"]
["Касимовский муниципальный район","Ермоловское","61608424"]
["Касимовский муниципальный район","Ибердусское","61608430"]
["Касимовский муниципальный район","Касимовский муниципальный район","61608000"]
["Касимовский муниципальный район","Китовское","61608433"]
["Касимовский муниципальный район","Клетинское","61608434"]
["Касимовский муниципальный район","Которовское","61608442"]
["Касимовский муниципальный район","Крутоярское","61608453"]
["Касимовский муниципальный район","Лашманское","61608454"]
["Касимовский муниципальный район","Лощининское","61608471"]
["Касимовский муниципальный район","Новодеревенское","61608456"]
["Касимовский муниципальный район","Овчинниковское","61608459"]
["Касимовский муниципальный район","Первинское","61608462"]
["Касимовский муниципальный район","Погостинское","61608465"]
["Касимовский муниципальный район","Савостьяновское","61608468"]
["Касимовский муниципальный район","Сынтульское","61608160"]
["Касимовский муниципальный район","Токаревское","61608474"]
["Касимовский муниципальный район","Торбаевское","61608412"]
["Касимовский муниципальный район","Шостьинское","61608480"]
["Клепиковский муниципальный район","Алексеевское","61610403"]
["Клепиковский муниципальный район","Болоньское","61610415"]
["Клепиковский муниципальный район","Бусаевское","61610418"]
["Клепиковский муниципальный район","Екшурское","61610451"]
["Клепиковский муниципальный район","Клепиковский муниципальный район","61610000"]
["Клепиковский муниципальный район","Колесниковское","61610448"]
["Клепиковский муниципальный район","Криушинское","61610454"]
["Клепиковский муниципальный район","Макеевское","61610460"]
["Клепиковский муниципальный район","Малаховское","61610463"]
["Клепиковский муниципальный район","Молькинское","61610475"]
["Клепиковский муниципальный район","Ненашкинское","61610487"]
["Клепиковский муниципальный район","Оськинское","61610472"]
["Клепиковский муниципальный район","Спас-Клепиковское","61610101"]
["Клепиковский муниципальный район","Тумское","61610154"]
["Клепиковский муниципальный район","Тюковское","61610484"]
["Клепиковский муниципальный район","Уткинское","61610421"]
["Кораблинский муниципальный район","Бобровинское","61612408"]
["Кораблинский муниципальный район","Кипчаковское","61612424"]
["Кораблинский муниципальный район","Ключанское","61612428"]
["Кораблинский муниципальный район","Ковалинское","61612432"]
["Кораблинский муниципальный район","Кораблинский муниципальный район","61612000"]
["Кораблинский муниципальный район","Кораблинское","61612101"]
["Кораблинский муниципальный район","Молвинослободское","61612456"]
["Кораблинский муниципальный район","Незнановское","61612448"]
["Кораблинский муниципальный район","Пехлецкое","61612460"]
["Кораблинский муниципальный район","Пустотинское","61612464"]
["Кораблинский муниципальный район","Яблоневское","61612484"]
["Милославский муниципальный район","Богородицкое","61615408"]
["Милославский муниципальный район","Большеподовечинское","61615412"]
["Милославский муниципальный район","Горняцкое","61615422"]
["Милославский муниципальный район","Кочуровское","61615428"]
["Милославский муниципальный район","Липяговское","61615432"]
["Милославский муниципальный район","Милославский муниципальный район","61615000"]
["Милославский муниципальный район","Павловское","61615456"]
["Милославский муниципальный район","Центральное","61615160"]
["Милославский муниципальный район","Чернавское","61615472"]
["Милославский муниципальный район","городское поселение Милославское","61615151"]
["Милославский муниципальный район","сельское поселение Милославское","61615444"]
["Михайловский муниципальный район","Виленское","61617406"]
["Михайловский муниципальный район","Голдинское","61617412"]
["Михайловский муниципальный район","Горностаевское","61617415"]
["Михайловский муниципальный район","Грязновское","61617418"]
["Михайловский муниципальный район","Жмуровское","61617421"]
["Михайловский муниципальный район","Ильичевское","61617476"]
["Михайловский муниципальный район","Каморинское","61617433"]
["Михайловский муниципальный район","Красновское","61617439"]
["Михайловский муниципальный район","Михайловский муниципальный район","61617000"]
["Михайловский муниципальный район","Михайловское","61617101"]
["Михайловский муниципальный район","Новопанское","61617448"]
["Михайловский муниципальный район","Октябрьское","61617154"]
["Михайловский муниципальный район","Печерниковское","61617451"]
["Михайловский муниципальный район","Поярковское","61617457"]
["Михайловский муниципальный район","Рачатниковское","61617460"]
["Михайловский муниципальный район","Слободское","61617467"]
["Михайловский муниципальный район","Стрелецко-Высельское","61617470"]
["Михайловский муниципальный район","Трепольское","61617473"]
["Михайловский муниципальный район","Чуриковское","61617485"]
["Михайловский муниципальный район","Щетининское","61617491"]
["Пителинский муниципальный район","Ермо-Николаевское","61623420"]
["Пителинский муниципальный район","Нестеровское","61623425"]
["Пителинский муниципальный район","Пеньковское","61623435"]
["Пителинский муниципальный район","Пителинский муниципальный район","61623000"]
["Пителинский муниципальный район","Пителинское","61623151"]
["Пителинский муниципальный район","Потапьевское","61623450"]
["Пронский муниципальный район","Малинищинское","61625435"]
["Пронский муниципальный район","Мамоновское","61625440"]
["Пронский муниципальный район","Новомичуринское","61625114"]
["Пронский муниципальный район","Октябрьское","61625445"]
["Пронский муниципальный район","Орловское","61625450"]
["Пронский муниципальный район","Погореловское","61625455"]
["Пронский муниципальный район","Пронский муниципальный район","61625000"]
["Пронский муниципальный район","Пронское","61625151"]
["Пронский муниципальный район","Тырновское","61625405"]
["Путятинский муниципальный район","Береговское","61626406"]
["Путятинский муниципальный район","Большеекатериновское","61626403"]
["Путятинский муниципальный район","Карабухинское","61626424"]
["Путятинский муниципальный район","Песочинское","61626432"]
["Путятинский муниципальный район","Путятинский муниципальный район","61626000"]
["Путятинский муниципальный район","Путятинское","61626436"]
["Путятинский муниципальный район","Строевское","61626412"]
["Рыбновский муниципальный район","Алешинское","61627404"]
["Рыбновский муниципальный район","Баграмовское","61627406"]
["Рыбновский муниципальный район","Батуринское","61627408"]
["Рыбновский муниципальный район","Вакинское","61627416"]
["Рыбновский муниципальный район","Глебковское","61627418"]
["Рыбновский муниципальный район","Истобниковское","61627424"]
["Рыбновский муниципальный район","Кузьминское","61627436"]
["Рыбновский муниципальный район","Пионерское","61627476"]
["Рыбновский муниципальный район","Пощуповское","61627456"]
["Рыбновский муниципальный район","Рыбновский муниципальный район","61627000"]
["Рыбновский муниципальный район","Рыбновское","61627101"]
["Рыбновский муниципальный район","Селецкое","61627460"]
["Рыбновский муниципальный район","Ходынинское","61627472"]
["Рыбновский муниципальный район","Чурилковское","61627464"]
["Ряжский муниципальный район","Алешинское","61630405"]
["Ряжский муниципальный район","Дегтянское","61630415"]
["Ряжский муниципальный район","Журавинское","61630420"]
["Ряжский муниципальный район","Петровское","61630450"]
["Ряжский муниципальный район","Поплевинское","61630460"]
["Ряжский муниципальный район","Ряжский муниципальный район","61630000"]
["Ряжский муниципальный район","Ряжское","61630101"]
["Рязанский муниципальный район","Варсковское","61634402"]
["Рязанский муниципальный район","Высоковское","61634409"]
["Рязанский муниципальный район","Вышгородское","61634412"]
["Рязанский муниципальный район","Вышетравинское","61634415"]
["Рязанский муниципальный район","Дубровическое","61634427"]
["Рязанский муниципальный район","Дядьковское","61634430"]
["Рязанский муниципальный район","Екимовское","61634433"]
["Рязанский муниципальный район","Заборьевское","61634436"]
["Рязанский муниципальный район","Заокское","61634439"]
["Рязанский муниципальный район","Искровское","61634485"]
["Рязанский муниципальный район","Кораблинское","61634451"]
["Рязанский муниципальный район","Листвянское","61634457"]
["Рязанский муниципальный район","Льговское","61634460"]
["Рязанский муниципальный район","Мурминское","61634401"]
["Рязанский муниципальный район","Окское","61634475"]
["Рязанский муниципальный район","Подвязьевское","61634478"]
["Рязанский муниципальный район","Полянское","61634483"]
["Рязанский муниципальный район","Ровновское","61634490"]
["Рязанский муниципальный район","Рязанский муниципальный район","61634000"]
["Рязанский муниципальный район","Семеновское","61634495"]
["Рязанский муниципальный район","Турлатовское","61634496"]
["Рязанский муниципальный район","Тюшевское","61634498"]
["Сапожковский муниципальный район","Березниковское","61637435"]
["Сапожковский муниципальный район","Канинское","61637410"]
["Сапожковский муниципальный район","Михеевское","61637405"]
["Сапожковский муниципальный район","Морозово-Борковское","61637430"]
["Сапожковский муниципальный район","Сапожковский муниципальный район","61637000"]
["Сапожковский муниципальный район","Сапожковское","61637151"]
["Сараевский муниципальный район","Алексеевское","61640403"]
["Сараевский муниципальный район","Борецкое","61640412"]
["Сараевский муниципальный район","Бычковское","61640415"]
["Сараевский муниципальный район","Высоковское","61640424"]
["Сараевский муниципальный район","Желобовское","61640430"]
["Сараевский муниципальный район","Кривское","61640436"]
["Сараевский муниципальный район","Можарское","61640442"]
["Сараевский муниципальный район","Муравлянское","61640448"]
["Сараевский муниципальный район","Напольновское","61640451"]
["Сараевский муниципальный район","Новобокинское","61640454"]
["Сараевский муниципальный район","Сараевский муниципальный район","61640000"]
["Сараевский муниципальный район","Сараевское","61640151"]
["Сараевский муниципальный район","Сысоевское","61640469"]
["Сараевский муниципальный район","Телятниковское","61640472"]
["Сараевский муниципальный район","Ягодновское","61640481"]
["Сасовский муниципальный район","Агломазовское","61642403"]
["Сасовский муниципальный район","Алешинское","61642406"]
["Сасовский муниципальный район","Батьковское","61642415"]
["Сасовский муниципальный район","Берестянское","61642408"]
["Сасовский муниципальный район","Гавриловское","61642418"]
["Сасовский муниципальный район","Глядковское","61642420"]
["Сасовский муниципальный район","Демушкинское","61642466"]
["Сасовский муниципальный район","Каргашинское","61642424"]
["Сасовский муниципальный район","Кустаревское","61642433"]
["Сасовский муниципальный район","Малостуденецкое","61642439"]
["Сасовский муниципальный район","Нижнемальцевское","61642448"]
["Сасовский муниципальный район","Новоберезовское","61642454"]
["Сасовский муниципальный район","Придорожное","61642464"]
["Сасовский муниципальный район","Сасовский муниципальный район","61642000"]
["Сасовский муниципальный район","Сотницынское","61642470"]
["Сасовский муниципальный район","Трудолюбовское","61642463"]
["Скопинский муниципальный район","Вослебовское","61644412"]
["Скопинский муниципальный район","Горловское","61644415"]
["Скопинский муниципальный район","Ильинское","61644430"]
["Скопинский муниципальный район","Корневское","61644445"]
["Скопинский муниципальный район","Павелецкое","61644154"]
["Скопинский муниципальный район","Побединское","61644157"]
["Скопинский муниципальный район","Полянское","61644478"]
["Скопинский муниципальный район","Скопинский муниципальный район","61644000"]
["Скопинский муниципальный район","Успенское","61644488"]
["Скопинский муниципальный район","Шелемишевское","61644496"]
["Спасский муниципальный район","Выжелесское","61646409"]
["Спасский муниципальный район","Гавриловское","61646415"]
["Спасский муниципальный район","Заречинское","61646434"]
["Спасский муниципальный район","Ижевское","61646443"]
["Спасский муниципальный район","Исадское","61646446"]
["Спасский муниципальный район","Кирицкое","61646452"]
["Спасский муниципальный район","Киструсское","61646488"]
["Спасский муниципальный район","Кутуковское","61646455"]
["Спасский муниципальный район","Лакашинское","61646458"]
["Спасский муниципальный район","Михальское","61646461"]
["Спасский муниципальный район","Панинское","61646473"]
["Спасский муниципальный район","Перкинское","61646476"]
["Спасский муниципальный район","Собчаковское","61646485"]
["Спасский муниципальный район","Спасск-Рязанское","61646101"]
["Спасский муниципальный район","Спасский муниципальный район","61646000"]
["Спасский муниципальный район","Троицкое","61646493"]
["Спасский муниципальный район","Федотьевское","61646498"]
["Старожиловский муниципальный район","Гребневское","61648420"]
["Старожиловский муниципальный район","Гулынское","61648425"]
["Старожиловский муниципальный район","Истьинское","61648435"]
["Старожиловский муниципальный район","Ленинское","61648438"]
["Старожиловский муниципальный район","Мелекшинское","61648440"]
["Старожиловский муниципальный район","Старожиловский муниципальный район","61648000"]
["Старожиловский муниципальный район","Старожиловское","61648151"]
["Старожиловский муниципальный район","Столпянское","61648460"]
["Ухоловский муниципальный район","Калининское","61650430"]
["Ухоловский муниципальный район","Коноплинское","61650440"]
["Ухоловский муниципальный район","Ольховское","61650450"]
["Ухоловский муниципальный район","Смолеевское","61650455"]
["Ухоловский муниципальный район","Ухоловский муниципальный район","61650000"]
["Ухоловский муниципальный район","Ухоловское","61650151"]
["Чучковский муниципальный район","Аладьинское","61653405"]
["Чучковский муниципальный район","Завидовское","61653420"]
["Чучковский муниципальный район","Остро-Пластиковское","61653435"]
["Чучковский муниципальный район","Пертовское","61653440"]
["Чучковский муниципальный район","Ункосовское","61653450"]
["Чучковский муниципальный район","Чучковский муниципальный район","61653000"]
["Чучковский муниципальный район","Чучковское","61653151"]
["Шацкий муниципальный район","Агишевское","61656406"]
["Шацкий муниципальный район","Борковское","61656415"]
["Шацкий муниципальный район","Желанновское","61656418"]
["Шацкий муниципальный район","Каверинское","61656421"]
["Шацкий муниципальный район","Казачинское","61656427"]
["Шацкий муниципальный район","Кермисинское","61656433"]
["Шацкий муниципальный район","Криволуцкое","61656460"]
["Шацкий муниципальный район","Куплинское","61656439"]
["Шацкий муниципальный район","Кучасьевское","61656442"]
["Шацкий муниципальный район","Лесно-Конобеевское","61656445"]
["Шацкий муниципальный район","Лесно-Полянское","61656448"]
["Шацкий муниципальный район","Новосвеженское","61656450"]
["Шацкий муниципальный район","Новочернеевское","61656451"]
["Шацкий муниципальный район","Ольховское","61656454"]
["Шацкий муниципальный район","Печинское","61656457"]
["Шацкий муниципальный район","Польно-Ялтуновское","61656463"]
["Шацкий муниципальный район","Тарадеевское","61656478"]
["Шацкий муниципальный район","Чернослободское","61656484"]
["Шацкий муниципальный район","Шацкий муниципальный район","61656000"]
["Шацкий муниципальный район","Шацкое","61656101"]
["Шацкий муниципальный район","Ямбирнское","61656493"]
["Шиловский муниципальный район","Аделинское","61658403"]
["Шиловский муниципальный район","Борковское","61658475"]
["Шиловский муниципальный район","Боровское","61658415"]
["Шиловский муниципальный район","Ерахтурское","61658424"]
["Шиловский муниципальный район","Желудевское","61658427"]
["Шиловский муниципальный район","Задубровское","61658430"]
["Шиловский муниципальный район","Занино-Починковское","61658445"]
["Шиловский муниципальный район","Ибредское","61658473"]
["Шиловский муниципальный район","Инякинское","61658436"]
["Шиловский муниципальный район","Краснохолмское","61658439"]
["Шиловский муниципальный район","Лесновское","61658157"]
["Шиловский муниципальный район","Мосоловское","61658448"]
["Шиловский муниципальный район","Санское","61658472"]
["Шиловский муниципальный район","Тереховское","61658478"]
["Шиловский муниципальный район","Тимошкинское","61658481"]
["Шиловский муниципальный район","Тырновское","61658484"]
["Шиловский муниципальный район","Шиловский муниципальный район","61658000"]
["Шиловский муниципальный район","Шиловское","61658151"]

{"sheet":"modfrmReestr","index":31,"n_rows":0,"n_cols":0,"rows_kept":0,"cut":false,"hidden":true,"merged":[]}

{"sheet":"modDblClick","index":32,"n_rows":0,"n_cols":0,"rows_kept":0,"cut":false,"hidden":true,"merged":[]}

{"sheet":"modfrmDateChoose","index":33,"n_rows":0,"n_cols":0,"rows_kept":0,"cut":false,"hidden":true,"merged":[]}

{"sheet":"modfrmSphereChoose","index":34,"n_rows":0,"n_cols":0,"rows_kept":0,"cut":false,"hidden":true,"merged":[]}

{"sheet":"modSheetMain01","index":35,"n_rows":0,"n_cols":0,"rows_kept":0,"cut":false,"hidden":true,"merged":[]}

{"sheet":"modSheetMain03","index":36,"n_rows":0,"n_cols":0,"rows_kept":0,"cut":false,"hidden":true,"merged":[]}

{"sheet":"modSheetMain04","index":37,"n_rows":0,"n_cols":0,"rows_kept":0,"cut":false,"hidden":true,"merged":[]}

{"sheet":"modSheetMain06","index":38,"n_rows":0,"n_cols":0,"rows_kept":0,"cut":false,"hidden":true,"merged":[]}

{"sheet":"modSheetMain07","index":39,"n_rows":0,"n_cols":0,"rows_kept":0,"cut":false,"hidden":true,"merged":[]}

{"sheet":"modSheetMain08","index":40,"n_rows":0,"n_cols":0,"rows_kept":0,"cut":false,"hidden":true,"merged":[]}

{"sheet":"modUpdTemplMain","index":41,"n_rows":0,"n_cols":0,"rows_kept":0,"cut":false,"hidden":true,"merged":[]}

{"sheet":"modRegionSelectSub","index":42,"n_rows":0,"n_cols":0,"rows_kept":0,"cut":false,"hidden":true,"merged":[]}

{"sheet":"modfrmCheckUpdates","index":43,"n_rows":0,"n_cols":0,"rows_kept":0,"cut":false,"hidden":true,"merged":[]}

{"sheet":"modCommonProv","index":44,"n_rows":0,"n_cols":0,"rows_kept":0,"cut":false,"hidden":true,"merged":[]}

{"sheet":"modProvGeneralProc","index":45,"n_rows":0,"n_cols":0,"rows_kept":0,"cut":false,"hidden":true,"merged":[]}

{"sheet":"modThisWorkbook","index":46,"n_rows":1,"n_cols":3,"rows_kept":1,"cut":false,"hidden":true,"merged":[]}
[null,null,{"$f":"\"modServiceModule.IsNameExists(wbBook, \"\"\"&A1&\"\"\") = False Or \" &  \"modServiceModule.IsNameExists(wbBook, \"\"\"&A2&\"\"\") = False or _\"","v":"modServiceModule.IsNameExists(wbBook, \"\") = False Or modServiceModule.IsNameExists(wbBook, \"\") = False or _"}]